Workbook

Sheet int
C2: Calcolo baricentro di una spezzata
C8: agg. 02.01.2015

Sheet 01
B1: Vertici spezzata
B2: A | C2: B | D2: C | E2: D | F2: E | G2: F | H2: G | I2: H | J2: I | K2: L | L2: M | M2: N | N2: O | O2: P | P2: Q | Q2: R | R2: S | S2: T | T2: U | U2: V | V2: Z
A3: x (cm) | B3: -2 | C3: 8 | D3: 8 | E3: 1 | F3: -7 | G3: -7
A4: y (cm) | B4: 5 | C4: 6 | D4: -4 | E4: -4 | F4: -6 | G4: 1
D5: 1
D6: -4

Sheet 02
A1: A | B1: B | C1: C | D1: D | E1: E | F1: F | G1: G | H1: H | I1: I | J1: L | K1: M | L1: N | M1: O | N1: P | P1: segmento | Q1: arco circ. | R1: centro dx | S1: centro sx
B2: Definizione Figure Elementari | O2: n° | P2: Figura | Q2: n° | R2: R | T2: ω | U2: α | V2: x | W2: y | X2: Δx | Y2: Δy | Z2: m | AA2: x | AB2: y | AC2: Sx=m∙y | AD2: Sy=m∙x | AE2: IJ | AF2: θ(IJ) | AG2: Δx>0 | AH2: Δx<0 | AI2: Δx<0 | AJ2: Δx>0 | AK2: Δx=0 | AL2: Δx=0 | AM2: Δx>0 | AN2: Δx<0 | AO2: θ(ij) | AQ2: θ(iO) | AR2: θ(iO) | AS2: Xo | AT2: Yo | AU2: GO | AV2: θ(OG) | AW2: θ(OG) | AX2: xG | AY2: yG | BB2: curva | BK2: segmento | BS2: massa segmento | BT2: x segmento | BU2: y segmento | BV2: massa arco | BW2: distanza centro-baricentro arco | BX2: angolo diretione θ(OG) | BY2: x arco | BZ2: y arco
R3: cm | T3: rad. | U3: rad. | V3: cm | W3: cm | X3: cm | Y3: cm | Z3: cm | AA3: cm | AB3: cm | AC3: cm | AE3: m | AF3: rad. | AG3: Δy>0 | AH3: Δy>0 | AI3: Δy<0 | AJ3: Δy<0 | AK3: Δy>0; | AL3: Δy<0 | AM3: Δy=0 | AN3: Δy<0 | AO3: rad. | AQ3: rad. | AR3: rad. | AS3: cm | AT3: cm | AU3: cm | AV3: rad. | AW3: rad. | AX3: cm | AY3: cm | BB3: θ(OI) | BC3: P1 | BD3: P2 | BE3: P3 | BF3: P4 | BG3: P5 | BH3: P6 | BI3: P7 | BK3: P1 | BL3: P2 | BM3: P3 | BN3: P4 | BO3: P5 | BP3: P6 | BQ3: P7
O4: 1 | P4: segmento | Q4: A | T4: =IF(OR(P4="",P4="segmento"),"",ASIN(0.5*AE4/R4)) ->  | U4: =IF(OR(P4="",P4="segmento"),"",PI()/2-T4) ->  | V4: =IF(Q4="","",LOOKUP(Q4,'01'!$B$2:$V$2,'01'!$B$3:$V$3)) -> -2 | W4: =IF(Q4="","",LOOKUP(Q4,'01'!$B$2:$V$2,'01'!$B$4:$V$4)) -> 5 | X4: =IF(P4="","",V5-V4) -> 10 | Y4: =IF(P4="","",W5-W4) -> 1 | Z4: =IF(P4="","",IF(P4="segmento",SQRT(X4^2+Y4^2),R4*2*T4)) -> 10.04987562 | AA4: =IF(P4="","",IF(P4="segmento",(V4+V5)/2,AX4)) -> 3 | AB4: =IF(P4="","",IF(P4="segmento",(W4+W5)/2,AY4)) -> 5.5 | AC4: =IF(P4="","",Z4*AB4) -> 55.27431592 | AD4: =IF(P4="","",Z4*AA4) -> 30.14962686 | AE4: =IF(P4="","",SQRT(X4^2+Y4^2)) -> 10.04987562 | AF4: =ATAN(Y4/X4) -> 0.09966865249 | AG4: =IF(AND(X4>0,Y4>0),AF4,"") -> 0.09966865249 | AH4: =IF(AND(X4<0,Y4>0),AF4+PI(),"") ->  | AI4: =IF(AND(X4<0,Y4<0),AF4+PI(),"") ->  | AJ4: =IF(AND(X4>0,Y4<0),AF4+2*PI(),"") ->  | AK4: =IF(AND(X4=0,Y4>0),PI()/2,"") ->  | AL4: =IF(AND(X4=0,Y4<0),1.5*PI(),"") ->  | AM4: =IF(AND(X4>0,Y4=0),0,"") ->  | AN4: =IF(AND(X4<0,Y4=0),PI(),"") ->  | AO4: =IF(P4="","",MAXA(AG4:AN5)) -> 0.09966865249 | AQ4: =IF(OR(P4="",P4="segmento"),"",IF(S4="centro sx",AO4+U4,2*PI()-(U4-AO4))) ->  | AR4: =IF(OR(P4="",P4="segmento"),"",IF(AQ4>2*PI(),AQ4-2*PI(),AQ4)) ->  | AS4: =IF(OR(P4="",P4="segmento"),"",V4+R4*COS(AR4)) ->  | AT4: =IF(OR(P4="",P4="segmento"),"",W4+R4*SIN(AR4)) ->  | AU4: =IF(OR(P4="",P4="segmento"),"",R4*SIN(T4)/T4) ->  | AV4: =IF(OR(P4="",P4="segmento"),"",AR4+PI()+T4) ->  | AW4: =IF(OR(P4="",P4="segmento"),"",BB4+T4) ->  | AX4: =IF(OR(P4="",P4="segmento"),"",IF(S4="centro sx",AS4+AU4*COS(BB4+T4*3/3),AS4+AU4*COS(BB4-T4*3/3))) ->  | AY4: =IF(OR(P4="",P4="segmento"),"",IF(S4="centro sx",AT4+AU4*SIN(BB4+T4*3/3),AT4+AU4*SIN(BB4-T4*3/3))) ->  | BA4: x | BB4: =IF(AR4-PI()<0,AR4+PI(),AR4-PI()) ->  | BC4: =IF(S4="centro sx",AS4+R4*COS(BB4+T4*0/3),AS4+R4*COS(BB4-T4*0/3)) ->  | BD4: =IF($S$4="centro sx",$AS$4+$R$4*COS($BB$4+$T4*1/3),$AS$4+$R$4*COS($BB$4-$T4*1/3)) ->  | BE4: =IF($S$4="centro sx",$AS$4+$R$4*COS($BB$4+$T4*2/3),$AS$4+$R$4*COS($BB$4-$T4*2/3)) ->  | BF4: =IF($S$4="centro sx",$AS$4+$R$4*COS($BB$4+$T4*3/3),$AS$4+$R$4*COS($BB$4-$T4*3/3)) ->  | BG4: =IF($S$4="centro sx",$AS$4+$R$4*COS($BB$4+$T4*4/3),$AS$4+$R$4*COS($BB$4-$T4*4/3)) ->  | BH4: =IF($S$4="centro sx",$AS$4+$R$4*COS($BB$4+$T4*5/3),$AS$4+$R$4*COS($BB$4-$T4*5/3)) ->  | BI4: =IF($S$4="centro sx",$AS$4+$R$4*COS($BB$4+$T4*6/3),$AS$4+$R$4*COS($BB$4-$T4*6/3)) ->  | BK4: =V4 -> -2 | BL4: =BK4+AE4*1/6*COS(AO4) -> -0.3333333333 | BM4: =BK4+AE4*2/6*COS(AO4) -> 1.333333333 | BN4: =BK4+AE4*3/6*COS(AO4) -> 3 | BO4: =BK4+AE4*4/6*COS(AO4) -> 4.666666667 | BP4: =BK4+AE4*5/6*COS(AO4) -> 6.333333333 | BQ4: =BK4+AE4*6/6*COS(AO4) -> 8 | BS4: =CONCATENATE("m",O4," = √[(x",Q5,"-x",Q4,")²+(y",Q5,"-y",Q4,,")²] = √{[(",FIXED(V5),")-(",,FIXED(V4),")]²+[(",,FIXED(W5),")-(",,FIXED(W4),")]²} = ",FIXED(Z4)," cm") -> m1 = √[(xB-xA)²+(yB-yA)²] = √{[(8.00)-(-2.00)]²+[(6.00)-(5.00)]²} = 10.05 cm | BT4: =CONCATENATE("x",O4," = (x",Q5,")+(x",Q4,")/2 = [(",FIXED(W4),")+(",FIXED(V4),")]/2 = ",FIXED(AA4)," cm") -> x1 = (xB)+(xA)/2 = [(5.00)+(-2.00)]/2 = 3.00 cm | BU4: =CONCATENATE("y",O4," = (y",Q5,"+y",Q4,")/2 = [(",FIXED(W5),")+(",FIXED(W4),")]/2 = ",FIXED(AB4)," cm") -> y1 = (yB+yA)/2 = [(6.00)+(5.00)]/2 = 5.50 cm | BV4: =CONCATENATE("m",O4," = R∙2ω = ",FIXED(R4),"x2x",FIXED(T4,4)," = ",FIXED(Z4)," cm") ->  | BW4: =CONCATENATE("OG",O4," = R∙sen(α)/α(rad) = ",FIXED(R4),"xsen(",FIXED(T4,4),"/",FIXED(T4,4)," = ",FIXED(AU4)," cm") ->  | BX4: =CONCATENATE("θ(OG) = ",FIXED(AW4,4)," rad = ",FIXED(DEGREES(AW4),2),"° deg") ->  | BY4: =CONCATENATE("x",O4," = XO + OG∙cos[θ(OG)] = ",FIXED(AS4),"+",FIXED(AU4),"xcos(",FIXED(DEGREES(AW4),4),"°) = ",FIXED(AX4)," cm") ->  | BZ4: =CONCATENATE("y",O4," = yO + OG∙sen[θ(OG)] = ",FIXED(AT4),"+",FIXED(AU4),"xcos(",FIXED(DEGREES(AW4),4),"°) = ",FIXED(AY4)," cm") ->  | CA4: =IF(P4="","",IF(P4="segmento",BS4,BV4)) -> m1 = √[(xB-xA)²+(yB-yA)²] = √{[(8.00)-(-2.00)]²+[(6.00)-(5.00)]²} = 10.05 cm | CB4: =IF(P4="","",IF(P4="segmento",BT4,BY4)) -> x1 = (xB)+(xA)/2 = [(5.00)+(-2.00)]/2 = 3.00 cm | CC4: =IF(P4="","",IF(P4="segmento",BU4,BZ4)) -> y1 = (yB+yA)/2 = [(6.00)+(5.00)]/2 = 5.50 cm | CD4: =IF(OR(P4="",P4="segmento"),"",BW4) ->  | CE4: =IF(OR(P4="",P4="segmento"),"",BX4) ->  | CF4: =IF(P4="","",CONCATENATE("S",O4,"x = m",O4,"∙y",O4," = ",FIXED(Z4),"x(",FIXED(AB4),") = ",FIXED(AD4)," cm²")) -> S1x = m1∙y1 = 10.05x(5.50) = 30.15 cm² | CG4: =IF(P4="","",CONCATENATE("S",O4,"y = m",O4,"∙x",O4," = ",FIXED(Z4),"x(",FIXED(AA4),") = ",FIXED(AD4)," cm²")) -> S1y = m1∙x1 = 10.05x(3.00) = 30.15 cm²
Q5: B | V5: =IF(Q5="","",LOOKUP(Q5,'01'!$B$2:$V$2,'01'!$B$3:$V$3)) -> 8 | W5: =IF(Q5="","",LOOKUP(Q5,'01'!$B$2:$V$2,'01'!$B$4:$V$4)) -> 6 | AK5: =IF(AND(X5=0,Y5>0),90,"") ->  | AL5: =IF(AND(X5=0,Y5<0),270,"") ->  | AN5: =IF(AND(X5<0,Y5=0),180,"") ->  | AO5: =MAXA(AF5:AM5) -> 0 | AX5: =IF($S$4="centro sx",$AS$4+$R$4*COS($BB$4+$T5*3/3),$AS$4+$R$4*COS($BB$4-$T5*3/3)) ->  | AY5: =IF($S$4="centro sx",$AT$4+$R$4*SIN($BB$4+$T$4*3/3),$AT$4+$R$4*SIN($BB$4-$T$4*3/3)) ->  | BA5: y | BC5: =IF(S4="centro sx",AT4+R4*SIN(BB4+T4*0/3),AT4+R4*SIN(BB4-T4*0/3)) ->  | BD5: =IF($S$4="centro sx",$AT$4+$R$4*SIN($BB$4+$T$4*1/3),$AT$4+$R$4*SIN($BB$4-$T$4*1/3)) ->  | BE5: =IF($S$4="centro sx",$AT$4+$R$4*SIN($BB$4+$T$4*2/3),$AT$4+$R$4*SIN($BB$4-$T$4*2/3)) ->  | BF5: =IF($S$4="centro sx",$AT$4+$R$4*SIN($BB$4+$T$4*3/3),$AT$4+$R$4*SIN($BB$4-$T$4*3/3)) ->  | BG5: =IF($S$4="centro sx",$AT$4+$R$4*SIN($BB$4+$T$4*4/3),$AT$4+$R$4*SIN($BB$4-$T$4*4/3)) ->  | BH5: =IF($S$4="centro sx",$AT$4+$R$4*SIN($BB$4+$T$4*5/3),$AT$4+$R$4*SIN($BB$4-$T$4*5/3)) ->  | BI5: =IF($S$4="centro sx",$AT$4+$R$4*SIN($BB$4+$T$4*6/3),$AT$4+$R$4*SIN($BB$4-$T$4*6/3)) ->  | BK5: =W4 -> 5 | BL5: =BK5+AE4*1/6*SIN(AO4) -> 5.166666667 | BM5: =BK5+AE4*2/6*SIN(AO4) -> 5.333333333 | BN5: =BK5+AE4*3/6*SIN(AO4) -> 5.5 | BO5: =BK5+AE4*4/6*SIN(AO4) -> 5.666666667 | BP5: =BK5+AE4*5/6*SIN(AO4) -> 5.833333333 | BQ5: =BK5+AE4*6/6*SIN(AO4) -> 6
O6: 2 | P6: arco circ. | Q6: B | R6: 5 | S6: centro dx | T6: =IF(OR(P6="",P6="segmento"),"",ASIN(0.5*AE6/R6)) -> 1.570796327 | U6: =IF(OR(P6="",P6="segmento"),"",PI()/2-T6) -> 0 | V6: =IF(Q6="","",LOOKUP(Q6,'01'!$B$2:$V$2,'01'!$B$3:$V$3)) -> 8 | W6: =IF(Q6="","",LOOKUP(Q6,'01'!$B$2:$V$2,'01'!$B$4:$V$4)) -> 6 | X6: =IF(P6="","",V7-V6) -> 0 | Y6: =IF(P6="","",W7-W6) -> -10 | Z6: =IF(P6="","",IF(P6="segmento",SQRT(X6^2+Y6^2),R6*2*T6)) -> 15.70796327 | AA6: =IF(P6="","",IF(P6="segmento",(V6+V7)/2,AX6)) -> 11.18309886 | AB6: =IF(P6="","",IF(P6="segmento",(W6+W7)/2,AY6)) -> 1 | AC6: =IF(P6="","",Z6*AB6) -> 15.70796327 | AD6: =IF(P6="","",Z6*AA6) -> 175.6637061 | AE6: =IF(P6="","",SQRT(X6^2+Y6^2)) -> 10 | AF6: =ATAN(Y6/X6) ->  | AG6: =IF(AND(X6>0,Y6>0),AF6,"") ->  | AH6: =IF(AND(X6<0,Y6>0),AF6+PI(),"") ->  | AI6: =IF(AND(X6<0,Y6<0),AF6+PI(),"") ->  | AJ6: =IF(AND(X6>0,Y6<0),AF6+2*PI(),"") ->  | AK6: =IF(AND(X6=0,Y6>0),PI()/2,"") ->  | AL6: =IF(AND(X6=0,Y6<0),1.5*PI(),"") -> 4.71238898 | AM6: =IF(AND(X6>0,Y6=0),0,"") ->  | AN6: =IF(AND(X6<0,Y6=0),PI(),"") ->  | AO6: =IF(P6="","",MAXA(AG6:AN7)) -> 4.71238898 | AQ6: =IF(OR(P6="",P6="segmento"),"",IF(S6="centro sx",AO6+U6,2*PI()-(U6-AO6))) -> 10.99557429 | AR6: =IF(OR(P6="",P6="segmento"),"",IF(AQ6>2*PI(),AQ6-2*PI(),AQ6)) -> 4.71238898 | AS6: =IF(OR(P6="",P6="segmento"),"",V6+R6*COS(AR6)) -> 8 | AT6: =IF(OR(P6="",P6="segmento"),"",W6+R6*SIN(AR6)) -> 1 | AU6: =IF(OR(P6="",P6="segmento"),"",R6*SIN(T6)/T6) -> 3.183098862 | AV6: =IF(OR(P6="",P6="segmento"),"",AR6+PI()+T6) -> 9.424777961 | AW6: =IF(OR(P6="",P6="segmento"),"",BB6+T6) -> 3.141592654 | AX6: =IF(OR(P6="",P6="segmento"),"",IF(S6="centro sx",AS6+AU6*COS(BB6+T6*3/3),AS6+AU6*COS(BB6-T6*3/3))) -> 11.18309886 | AY6: =IF(OR(P6="",P6="segmento"),"",IF(S6="centro sx",AT6+AU6*SIN(BB6+T6*3/3),AT6+AU6*SIN(BB6-T6*3/3))) -> 1 | BA6: x | BB6: =IF(AR6-PI()<0,AR6+PI(),AR6-PI()) -> 1.570796327 | BC6: =IF(S6="centro sx",AS6+R6*COS(BB6+T6*0/3),AS6+R6*COS(BB6-T6*0/3)) -> 8 | BD6: =IF($S$6="centro sx",$AS$6+$R$6*COS($BB$6+$T6*1/3),$AS$6+$R$6*COS($BB$6-$T6*1/3)) -> 10.5 | BE6: =IF($S$6="centro sx",$AS$6+$R$6*COS($BB$6+$T6*2/3),$AS$6+$R$6*COS($BB$6-$T6*2/3)) -> 12.33012702 | BF6: =IF($S$6="centro sx",$AS$6+$R$6*COS($BB$6+$T6*3/3),$AS$6+$R$6*COS($BB$6-$T6*3/3)) -> 13 | BG6: =IF($S$6="centro sx",$AS$6+$R$6*COS($BB$6+$T6*4/3),$AS$6+$R$6*COS($BB$6-$T6*4/3)) -> 12.33012702 | BH6: =IF($S$6="centro sx",$AS$6+$R$6*COS($BB$6+$T6*5/3),$AS$6+$R$6*COS($BB$6-$T6*5/3)) -> 10.5 | BI6: =IF($S$6="centro sx",$AS$6+$R$6*COS($BB$6+$T6*6/3),$AS$6+$R$6*COS($BB$6-$T6*6/3)) -> 8 | BK6: =V6 -> 8 | BL6: =BK6+AE6*1/6*COS(AO6) -> 8 | BM6: =BK6+AE6*2/6*COS(AO6) -> 8 | BN6: =BK6+AE6*3/6*COS(AO6) -> 8 | BO6: =BK6+AE6*4/6*COS(AO6) -> 8 | BP6: =BK6+AE6*5/6*COS(AO6) -> 8 | BQ6: =BK6+AE6*6/6*COS(AO6) -> 8 | BS6: =CONCATENATE("m",O6," = √[(x",Q7,"-x",Q6,")²+(y",Q7,"-y",Q6,,")²] = √{[(",FIXED(V7),")-(",,FIXED(V6),")]²+[(",,FIXED(W7),")-(",,FIXED(W6),")]²} = ",FIXED(Z6)," cm") -> m2 = √[(xC-xB)²+(yC-yB)²] = √{[(8.00)-(8.00)]²+[(-4.00)-(6.00)]²} = 15.71 cm | BT6: =CONCATENATE("x",O6," = (x",Q7,")+(x",Q6,")/2 = [(",FIXED(W6),")+(",FIXED(V6),")]/2 = ",FIXED(AA6)," cm") -> x2 = (xC)+(xB)/2 = [(6.00)+(8.00)]/2 = 11.18 cm | BU6: =CONCATENATE("y",O6," = (y",Q7,"+y",Q6,")/2 = [(",FIXED(W7),")+(",FIXED(W6),")]/2 = ",FIXED(AB6)," cm") -> y2 = (yC+yB)/2 = [(-4.00)+(6.00)]/2 = 1.00 cm | BV6: =CONCATENATE("m",O6," = R∙2ω = ",FIXED(R6),"x2x",FIXED(T6,4)," = ",FIXED(Z6)," cm") -> m2 = R∙2ω = 5.00x2x1.5708 = 15.71 cm | BW6: =CONCATENATE("OG",O6," = R∙sen(α)/α(rad) = ",FIXED(R6),"xsen(",FIXED(T6,4),"/",FIXED(T6,4)," = ",FIXED(AU6)," cm") -> OG2 = R∙sen(α)/α(rad) = 5.00xsen(1.5708/1.5708 = 3.18 cm | BX6: =CONCATENATE("θ(OG) = ",FIXED(AW6,4)," rad = ",FIXED(DEGREES(AW6),2),"° deg") -> θ(OG) = 3.1416 rad = 180.00° deg | BY6: =CONCATENATE("x",O6," = XO + OG∙cos[θ(OG)] = ",FIXED(AS6),"+",FIXED(AU6),"xcos(",FIXED(DEGREES(AW6),4),"°) = ",FIXED(AX6)," cm") -> x2 = XO + OG∙cos[θ(OG)] = 8.00+3.18xcos(180.0000°) = 11.18 cm | BZ6: =CONCATENATE("y",O6," = yO + OG∙sen[θ(OG)] = ",FIXED(AT6),"+",FIXED(AU6),"xsen(",FIXED(DEGREES(AW6),4),"°) = ",FIXED(AY6)," cm") -> y2 = yO + OG∙sen[θ(OG)] = 1.00+3.18xsen(180.0000°) = 1.00 cm | CA6: =IF(P6="","",IF(P6="segmento",BS6,BV6)) -> m2 = R∙2ω = 5.00x2x1.5708 = 15.71 cm | CB6: =IF(P6="","",IF(P6="segmento",BT6,BY6)) -> x2 = XO + OG∙cos[θ(OG)] = 8.00+3.18xcos(180.0000°) = 11.18 cm | CC6: =IF(P6="","",IF(P6="segmento",BU6,BZ6)) -> y2 = yO + OG∙sen[θ(OG)] = 1.00+3.18xsen(180.0000°) = 1.00 cm | CD6: =IF(OR(P6="",P6="segmento"),"",BW6) -> OG2 = R∙sen(α)/α(rad) = 5.00xsen(1.5708/1.5708 = 3.18 cm | CE6: =IF(OR(P6="",P6="segmento"),"",BX6) -> θ(OG) = 3.1416 rad = 180.00° deg | CF6: =IF(P6="","",CONCATENATE("S",O6,"x = m",O6,"∙y",O6," = ",FIXED(Z6),"x(",FIXED(AB6),") = ",FIXED(AD6)," cm²")) -> S2x = m2∙y2 = 15.71x(1.00) = 175.66 cm² | CG6: =IF(P6="","",CONCATENATE("S",O6,"y = m",O6,"∙x",O6," = ",FIXED(Z6),"x(",FIXED(AA6),") = ",FIXED(AD6)," cm²")) -> S2y = m2∙x2 = 15.71x(11.18) = 175.66 cm²
Q7: C | V7: =IF(Q7="","",LOOKUP(Q7,'01'!$B$2:$V$2,'01'!$B$3:$V$3)) -> 8 | W7: =IF(Q7="","",LOOKUP(Q7,'01'!$B$2:$V$2,'01'!$B$4:$V$4)) -> -4 | AK7: =IF(AND(X7=0,Y7>0),90,"") ->  | AL7: =IF(AND(X7=0,Y7<0),270,"") ->  | AN7: =IF(AND(X7<0,Y7=0),180,"") ->  | AO7: =MAXA(AF7:AM7) -> 0 | AX7: =IF($S$4="centro sx",$AS$4+$R$4*COS($BB$4+$T7*3/3),$AS$4+$R$4*COS($BB$4-$T7*3/3)) ->  | AY7: =IF($S$4="centro sx",$AT$4+$R$4*SIN($BB$4+$T$4*3/3),$AT$4+$R$4*SIN($BB$4-$T$4*3/3)) ->  | BA7: y | BC7: =IF(S6="centro sx",AT6+R6*SIN(BB6+T6*0/3),AT6+R6*SIN(BB6-T6*0/3)) -> 6 | BD7: =IF($S$6="centro sx",$AT$6+$R$6*SIN($BB$6+$T$6*1/3),$AT$6+$R$6*SIN($BB$6-$T$6*1/3)) -> 5.330127019 | BE7: =IF($S$6="centro sx",$AT$6+$R$6*SIN($BB$6+$T$6*2/3),$AT$6+$R$6*SIN($BB$6-$T$6*2/3)) -> 3.5 | BF7: =IF($S$6="centro sx",$AT$6+$R$6*SIN($BB$6+$T$6*3/3),$AT$6+$R$6*SIN($BB$6-$T$6*3/3)) -> 1 | BG7: =IF($S$6="centro sx",$AT$6+$R$6*SIN($BB$6+$T$6*4/3),$AT$6+$R$6*SIN($BB$6-$T$6*4/3)) -> -1.5 | BH7: =IF($S$6="centro sx",$AT$6+$R$6*SIN($BB$6+$T$6*5/3),$AT$6+$R$6*SIN($BB$6-$T$6*5/3)) -> -3.330127019 | BI7: =IF($S$6="centro sx",$AT$6+$R$6*SIN($BB$6+$T$6*6/3),$AT$6+$R$6*SIN($BB$6-$T$6*6/3)) -> -4 | BK7: =W6 -> 6 | BL7: =BK7+AE6*1/6*SIN(AO6) -> 4.333333333 | BM7: =BK7+AE6*2/6*SIN(AO6) -> 2.666666667 | BN7: =BK7+AE6*3/6*SIN(AO6) -> 1 | BO7: =BK7+AE6*4/6*SIN(AO6) -> -0.6666666667 | BP7: =BK7+AE6*5/6*SIN(AO6) -> -2.333333333 | BQ7: =BK7+AE6*6/6*SIN(AO6) -> -4
O8: 3 | P8: segmento | Q8: C | T8: =IF(OR(P8="",P8="segmento"),"",ASIN(0.5*AE8/R8)) ->  | U8: =IF(OR(P8="",P8="segmento"),"",PI()/2-T8) ->  | V8: =IF(Q8="","",LOOKUP(Q8,'01'!$B$2:$V$2,'01'!$B$3:$V$3)) -> 8 | W8: =IF(Q8="","",LOOKUP(Q8,'01'!$B$2:$V$2,'01'!$B$4:$V$4)) -> -4 | X8: =IF(P8="","",V9-V8) -> -7 | Y8: =IF(P8="","",W9-W8) -> 0 | Z8: =IF(P8="","",IF(P8="segmento",SQRT(X8^2+Y8^2),R8*2*T8)) -> 7 | AA8: =IF(P8="","",IF(P8="segmento",(V8+V9)/2,AX8)) -> 4.5 | AB8: =IF(P8="","",IF(P8="segmento",(W8+W9)/2,AY8)) -> -4 | AC8: =IF(P8="","",Z8*AB8) -> -28 | AD8: =IF(P8="","",Z8*AA8) -> 31.5 | AE8: =IF(P8="","",SQRT(X8^2+Y8^2)) -> 7 | AF8: =ATAN(Y8/X8) -> 0 | AG8: =IF(AND(X8>0,Y8>0),AF8,"") ->  | AH8: =IF(AND(X8<0,Y8>0),AF8+PI(),"") ->  | AI8: =IF(AND(X8<0,Y8<0),AF8+PI(),"") ->  | AJ8: =IF(AND(X8>0,Y8<0),AF8+2*PI(),"") ->  | AK8: =IF(AND(X8=0,Y8>0),PI()/2,"") ->  | AL8: =IF(AND(X8=0,Y8<0),1.5*PI(),"") ->  | AN8: =IF(AND(X8<0,Y8=0),PI(),"") -> 3.141592654 | AO8: =IF(P8="","",MAXA(AG8:AN9)) -> 3.141592654 | AQ8: =IF(OR(P8="",P8="segmento"),"",IF(S8="centro sx",AO8+U8,2*PI()-(U8-AO8))) ->  | AR8: =IF(OR(P8="",P8="segmento"),"",IF(AQ8>2*PI(),AQ8-2*PI(),AQ8)) ->  | AS8: =IF(OR(P8="",P8="segmento"),"",V8+R8*COS(AR8)) ->  | AT8: =IF(OR(P8="",P8="segmento"),"",W8+R8*SIN(AR8)) ->  | AU8: =IF(OR(P8="",P8="segmento"),"",R8*SIN(T8)/T8) ->  | AV8: =IF(OR(P8="",P8="segmento"),"",AR8+PI()+T8) ->  | AW8: =IF(OR(P8="",P8="segmento"),"",BB8+T8) ->  | AX8: =IF(OR(P8="",P8="segmento"),"",IF(S8="centro sx",AS8+AU8*COS(BB8+T8*3/3),AS8+AU8*COS(BB8-T8*3/3))) ->  | AY8: =IF(OR(P8="",P8="segmento"),"",IF(S8="centro sx",AT8+AU8*SIN(BB8+T8*3/3),AT8+AU8*SIN(BB8-T8*3/3))) ->  | BA8: x | BB8: =IF(AR8-PI()<0,AR8+PI(),AR8-PI()) ->  | BC8: =IF($S$8="centro sx",$AS$8+$R$8*COS($BB$8+$T8*0/3),$AS$8+$R$8*COS($BB$8-$T8*0/3)) ->  | BD8: =IF($S$8="centro sx",$AS$8+$R$8*COS($BB$8+$T8*1/3),$AS$8+$R$8*COS($BB$8-$T8*1/3)) ->  | BE8: =IF($S$8="centro sx",$AS$8+$R$8*COS($BB$8+$T8*2/3),$AS$8+$R$8*COS($BB$8-$T8*2/3)) ->  | BF8: =IF($S$8="centro sx",$AS$8+$R$8*COS($BB$8+$T8*3/3),$AS$8+$R$8*COS($BB$8-$T8*3/3)) ->  | BG8: =IF($S$8="centro sx",$AS$8+$R$8*COS($BB$8+$T8*4/3),$AS$8+$R$8*COS($BB$8-$T8*4/3)) ->  | BH8: =IF($S$8="centro sx",$AS$8+$R$8*COS($BB$8+$T8*5/3),$AS$8+$R$8*COS($BB$8-$T8*5/3)) ->  | BI8: =IF($S$8="centro sx",$AS$8+$R$8*COS($BB$8+$T8*6/3),$AS$8+$R$8*COS($BB$8-$T8*6/3)) ->  | BK8: =V8 -> 8 | BL8: =BK8+AE8*1/6*COS(AO8) -> 6.833333333 | BM8: =BK8+AE8*2/6*COS(AO8) -> 5.666666667 | BN8: =BK8+AE8*3/6*COS(AO8) -> 4.5 | BO8: =BK8+AE8*4/6*COS(AO8) -> 3.333333333 | BP8: =BK8+AE8*5/6*COS(AO8) -> 2.166666667 | BQ8: =BK8+AE8*6/6*COS(AO8) -> 1 | BS8: =CONCATENATE("m",O8," = √[(x",Q9,"-x",Q8,")²+(y",Q9,"-y",Q8,,")²] = √{[(",FIXED(V9),")-(",,FIXED(V8),")]²+[(",,FIXED(W9),")-(",,FIXED(W8),")]²} = ",FIXED(Z8)," cm") -> m3 = √[(xD-xC)²+(yD-yC)²] = √{[(1.00)-(8.00)]²+[(-4.00)-(-4.00)]²} = 7.00 cm | BT8: =CONCATENATE("x",O8," = (x",Q9,")+(x",Q8,")/2 = [(",FIXED(W8),")+(",FIXED(V8),")]/2 = ",FIXED(AA8)," cm") -> x3 = (xD)+(xC)/2 = [(-4.00)+(8.00)]/2 = 4.50 cm | BU8: =CONCATENATE("y",O8," = (y",Q9,"+y",Q8,")/2 = [(",FIXED(W9),")+(",FIXED(W8),")]/2 = ",FIXED(AB8)," cm") -> y3 = (yD+yC)/2 = [(-4.00)+(-4.00)]/2 = -4.00 cm | BV8: =CONCATENATE("m",O8," = R∙2ω = ",FIXED(R8),"x2x",FIXED(T8,4)," = ",FIXED(Z8)," cm") ->  | BW8: =CONCATENATE("OG",O8," = R∙sen(α)/α(rad) = ",FIXED(R8),"xsen(",FIXED(T8,4),"/",FIXED(T8,4)," = ",FIXED(AU8)," cm") ->  | BX8: =CONCATENATE("θ(OG) = ",FIXED(AW8,4)," rad = ",FIXED(DEGREES(AW8),2),"° deg") ->  | BY8: =CONCATENATE("x",O8," = XO + OG∙cos[θ(OG)] = ",FIXED(AS8),"+",FIXED(AU8),"xcos(",FIXED(DEGREES(AW8),4),"°) = ",FIXED(AX8)," cm") ->  | BZ8: =CONCATENATE("y",O8," = yO + OG∙sen[θ(OG)] = ",FIXED(AT8),"+",FIXED(AU8),"xcos(",FIXED(DEGREES(AW8),4),"°) = ",FIXED(AY8)," cm") ->  | CA8: =IF(P8="","",IF(P8="segmento",BS8,BV8)) -> m3 = √[(xD-xC)²+(yD-yC)²] = √{[(1.00)-(8.00)]²+[(-4.00)-(-4.00)]²} = 7.00 cm | CB8: =IF(P8="","",IF(P8="segmento",BT8,BY8)) -> x3 = (xD)+(xC)/2 = [(-4.00)+(8.00)]/2 = 4.50 cm | CC8: =IF(P8="","",IF(P8="segmento",BU8,BZ8)) -> y3 = (yD+yC)/2 = [(-4.00)+(-4.00)]/2 = -4.00 cm | CD8: =IF(OR(P8="",P8="segmento"),"",BW8) ->  | CE8: =IF(OR(P8="",P8="segmento"),"",BX8) ->  | CF8: =IF(P8="","",CONCATENATE("S",O8,"x = m",O8,"∙y",O8," = ",FIXED(Z8),"x(",FIXED(AB8),") = ",FIXED(AD8)," cm²")) -> S3x = m3∙y3 = 7.00x(-4.00) = 31.50 cm² | CG8: =IF(P8="","",CONCATENATE("S",O8,"y = m",O8,"∙x",O8," = ",FIXED(Z8),"x(",FIXED(AA8),") = ",FIXED(AD8)," cm²")) -> S3y = m3∙x3 = 7.00x(4.50) = 31.50 cm²
Q9: D | V9: =IF(Q9="","",LOOKUP(Q9,'01'!$B$2:$V$2,'01'!$B$3:$V$3)) -> 1 | W9: =IF(Q9="","",LOOKUP(Q9,'01'!$B$2:$V$2,'01'!$B$4:$V$4)) -> -4 | AK9: =IF(AND(X9=0,Y9>0),90,"") ->  | AL9: =IF(AND(X9=0,Y9<0),270,"") ->  | AN9: =IF(AND(X9<0,Y9=0),180,"") ->  | AO9: =MAXA(AF9:AM9) -> 0 | AX9: =IF($S$4="centro sx",$AS$4+$R$4*COS($BB$4+$T9*3/3),$AS$4+$R$4*COS($BB$4-$T9*3/3)) ->  | AY9: =IF($S$4="centro sx",$AT$4+$R$4*SIN($BB$4+$T$4*3/3),$AT$4+$R$4*SIN($BB$4-$T$4*3/3)) ->  | BA9: y | BC9: =IF($S$8="centro sx",$AT$8+$R$8*SIN($BB$8+$T$8*0/3),$AT$8+$R$8*SIN($BB$8-$T$8*0/3)) ->  | BD9: =IF($S$8="centro sx",$AT$8+$R$8*SIN($BB$8+$T$8*1/3),$AT$8+$R$8*SIN($BB$8-$T$8*1/3)) ->  | BE9: =IF($S$8="centro sx",$AT$8+$R$8*SIN($BB$8+$T$8*2/3),$AT$8+$R$8*SIN($BB$8-$T$8*2/3)) ->  | BF9: =IF($S$8="centro sx",$AT$8+$R$8*SIN($BB$8+$T$8*3/3),$AT$8+$R$8*SIN($BB$8-$T$8*3/3)) ->  | BG9: =IF($S$8="centro sx",$AT$8+$R$8*SIN($BB$8+$T$8*4/3),$AT$8+$R$8*SIN($BB$8-$T$8*4/3)) ->  | BH9: =IF($S$8="centro sx",$AT$8+$R$8*SIN($BB$8+$T$8*5/3),$AT$8+$R$8*SIN($BB$8-$T$8*5/3)) ->  | BI9: =IF($S$8="centro sx",$AT$8+$R$8*SIN($BB$8+$T$8*6/3),$AT$8+$R$8*SIN($BB$8-$T$8*6/3)) ->  | BK9: =W8 -> -4 | BL9: =BK9+AE8*1/6*SIN(AO8) -> -4 | BM9: =BK9+AE8*2/6*SIN(AO8) -> -4 | BN9: =BK9+AE8*3/6*SIN(AO8) -> -4 | BO9: =BK9+AE8*4/6*SIN(AO8) -> -4 | BP9: =BK9+AE8*5/6*SIN(AO8) -> -4 | BQ9: =BK9+AE8*6/6*SIN(AO8) -> -4
O10: 4 | P10: segmento | Q10: D | T10: =IF(OR(P10="",P10="segmento"),"",ASIN(0.5*AE10/R10)) ->  | U10: =IF(OR(P10="",P10="segmento"),"",PI()/2-T10) ->  | V10: =IF(Q10="","",LOOKUP(Q10,'01'!$B$2:$V$2,'01'!$B$3:$V$3)) -> 1 | W10: =IF(Q10="","",LOOKUP(Q10,'01'!$B$2:$V$2,'01'!$B$4:$V$4)) -> -4 | X10: -8 | Y10: =IF(P10="","",W11-W10) -> -2 | Z10: =IF(P10="","",IF(P10="segmento",SQRT(X10^2+Y10^2),R10*2*T10)) -> 8.246211251 | AA10: =IF(P10="","",IF(P10="segmento",(V10+V11)/2,AX10)) -> -3 | AB10: =IF(P10="","",IF(P10="segmento",(W10+W11)/2,AY10)) -> -5 | AC10: =IF(P10="","",Z10*AB10) -> -41.23105626 | AD10: =IF(P10="","",Z10*AA10) -> -24.73863375 | AE10: =IF(P10="","",SQRT(X10^2+Y10^2)) -> 8.246211251 | AF10: =ATAN(Y10/X10) -> 0.2449786631 | AG10: =IF(AND(X10>0,Y10>0),AF10,"") ->  | AH10: =IF(AND(X10<0,Y10>0),AF10+PI(),"") ->  | AI10: =IF(AND(X10<0,Y10<0),AF10+PI(),"") -> 3.386571317 | AJ10: =IF(AND(X10>0,Y10<0),AF10+2*PI(),"") ->  | AK10: =IF(AND(X10=0,Y10>0),PI()/2,"") ->  | AL10: =IF(AND(X10=0,Y10<0),1.5*PI(),"") ->  | AN10: =IF(AND(X10<0,Y10=0),PI(),"") ->  | AO10: =IF(P10="","",MAXA(AG10:AN11)) -> 3.386571317 | AQ10: =IF(OR(P10="",P10="segmento"),"",IF(S10="centro sx",AO10+U10,2*PI()-(U10-AO10))) ->  | AR10: =IF(OR(P10="",P10="segmento"),"",IF(AQ10>2*PI(),AQ10-2*PI(),AQ10)) ->  | AS10: =IF(OR(P10="",P10="segmento"),"",V10+R10*COS(AR10)) ->  | AT10: =IF(OR(P10="",P10="segmento"),"",W10+R10*SIN(AR10)) ->  | AU10: =IF(OR(P10="",P10="segmento"),"",R10*SIN(T10)/T10) ->  | AV10: =IF(OR(P10="",P10="segmento"),"",AR10+PI()+T10) ->  | AW10: =IF(OR(P10="",P10="segmento"),"",BB10+T10) ->  | AX10: =IF(OR(P10="",P10="segmento"),"",IF(S10="centro sx",AS10+AU10*COS(BB10+T10*3/3),AS10+AU10*COS(BB10-T10*3/3))) ->  | AY10: =IF(OR(P10="",P10="segmento"),"",IF(S10="centro sx",AT10+AU10*SIN(BB10+T10*3/3),AT10+AU10*SIN(BB10-T10*3/3))) ->  | BA10: x | BB10: =IF(AR10-PI()<0,AR10+PI(),AR10-PI()) ->  | BC10: =IF(S10="centro sx",AS10+R10*COS(BB10+T10*0/3),$AS$10+$R$10*COS($BB$10-$T10*0/3)) ->  | BD10: =IF($S$10="centro sx",$AS$10+$R$10*COS($BB$10+$T10*1/3),$AS$10+$R$10*COS($BB$10-$T10*1/3)) ->  | BE10: =IF($S$10="centro sx",$AS$10+$R$10*COS($BB$10+$T10*2/3),$AS$10+$R$10*COS($BB$10-$T10*2/3)) ->  | BF10: =IF($S$10="centro sx",$AS$10+$R$10*COS($BB$10+$T10*3/3),$AS$10+$R$10*COS($BB$10-$T10*3/3)) ->  | BG10: =IF($S$10="centro sx",$AS$10+$R$10*COS($BB$10+$T10*4/3),$AS$10+$R$10*COS($BB$10-$T10*4/3)) ->  | BH10: =IF($S$10="centro sx",$AS$10+$R$10*COS($BB$10+$T10*5/3),$AS$10+$R$10*COS($BB$10-$T10*5/3)) ->  | BI10: =IF($S$10="centro sx",$AS$10+$R$10*COS($BB$10+$T10*6/3),$AS$10+$R$10*COS($BB$10-$T10*6/3)) ->  | BK10: =V10 -> 1 | BL10: =BK10+AE10*1/6*COS(AO10) -> -0.3333333333 | BM10: =BK10+AE10*2/6*COS(AO10) -> -1.666666667 | BN10: =BK10+AE10*3/6*COS(AO10) -> -3 | BO10: =BK10+AE10*4/6*COS(AO10) -> -4.333333333 | BP10: =BK10+AE10*5/6*COS(AO10) -> -5.666666667 | BQ10: =BK10+AE10*6/6*COS(AO10) -> -7 | BS10: =CONCATENATE("m",O10," = √[(x",Q11,"-x",Q10,")²+(y",Q11,"-y",Q10,,")²] = √{[(",FIXED(V11),")-(",,FIXED(V10),")]²+[(",,FIXED(W11),")-(",,FIXED(W10),")]²} = ",FIXED(Z10)," cm") -> m4 = √[(xE-xD)²+(yE-yD)²] = √{[(-7.00)-(1.00)]²+[(-6.00)-(-4.00)]²} = 8.25 cm | BT10: =CONCATENATE("x",O10," = (x",Q11,")+(x",Q10,")/2 = [(",FIXED(W10),")+(",FIXED(V10),")]/2 = ",FIXED(AA10)," cm") -> x4 = (xE)+(xD)/2 = [(-4.00)+(1.00)]/2 = -3.00 cm | BU10: =CONCATENATE("y",O10," = (y",Q11,"+y",Q10,")/2 = [(",FIXED(W11),")+(",FIXED(W10),")]/2 = ",FIXED(AB10)," cm") -> y4 = (yE+yD)/2 = [(-6.00)+(-4.00)]/2 = -5.00 cm | BV10: =CONCATENATE("m",O10," = R∙2ω = ",FIXED(R10),"x2x",FIXED(T10,4)," = ",FIXED(Z10)," cm") ->  | BW10: =CONCATENATE("OG",O10," = R∙sen(α)/α(rad) = ",FIXED(R10),"xsen(",FIXED(T10,4),"/",FIXED(T10,4)," = ",FIXED(AU10)," cm") ->  | BX10: =CONCATENATE("θ(OG) = ",FIXED(AW10,4)," rad = ",FIXED(DEGREES(AW10),2),"° deg") ->  | BY10: =CONCATENATE("x",O10," = XO + OG∙cos[θ(OG)] = ",FIXED(AS10),"+",FIXED(AU10),"xcos(",FIXED(DEGREES(AW10),4),"°) = ",FIXED(AX10)," cm") ->  | BZ10: =CONCATENATE("y",O10," = yO + OG∙sen[θ(OG)] = ",FIXED(AT10),"+",FIXED(AU10),"xcos(",FIXED(DEGREES(AW10),4),"°) = ",FIXED(AY10)," cm") ->  | CA10: =IF(P10="","",IF(P10="segmento",BS10,BV10)) -> m4 = √[(xE-xD)²+(yE-yD)²] = √{[(-7.00)-(1.00)]²+[(-6.00)-(-4.00)]²} = 8.25 cm | CB10: =IF(P10="","",IF(P10="segmento",BT10,BY10)) -> x4 = (xE)+(xD)/2 = [(-4.00)+(1.00)]/2 = -3.00 cm | CC10: =IF(P10="","",IF(P10="segmento",BU10,BZ10)) -> y4 = (yE+yD)/2 = [(-6.00)+(-4.00)]/2 = -5.00 cm | CD10: =IF(OR(P10="",P10="segmento"),"",BW10) ->  | CE10: =IF(OR(P10="",P10="segmento"),"",BX10) ->  | CF10: =IF(P10="","",CONCATENATE("S",O10,"x = m",O10,"∙y",O10," = ",FIXED(Z10),"x(",FIXED(AB10),") = ",FIXED(AD10)," cm²")) -> S4x = m4∙y4 = 8.25x(-5.00) = -24.74 cm² | CG10: =IF(P10="","",CONCATENATE("S",O10,"y = m",O10,"∙x",O10," = ",FIXED(Z10),"x(",FIXED(AA10),") = ",FIXED(AD10)," cm²")) -> S4y = m4∙x4 = 8.25x(-3.00) = -24.74 cm²
Q11: E | V11: =IF(Q11="","",LOOKUP(Q11,'01'!$B$2:$V$2,'01'!$B$3:$V$3)) -> -7 | W11: =IF(Q11="","",LOOKUP(Q11,'01'!$B$2:$V$2,'01'!$B$4:$V$4)) -> -6 | AK11: =IF(AND(X11=0,Y11>0),90,"") ->  | AL11: =IF(AND(X11=0,Y11<0),270,"") ->  | AN11: =IF(AND(X11<0,Y11=0),180,"") ->  | AO11: =MAXA(AF11:AM11) -> 0 | AX11: =IF($S$4="centro sx",$AS$4+$R$4*COS($BB$4+$T11*3/3),$AS$4+$R$4*COS($BB$4-$T11*3/3)) ->  | AY11: =IF($S$4="centro sx",$AT$4+$R$4*SIN($BB$4+$T$4*3/3),$AT$4+$R$4*SIN($BB$4-$T$4*3/3)) ->  | BA11: y | BC11: =IF($S$10="centro sx",$AT$10+$R$10*SIN($BB$10+$T$10*0/3),$AT$10+$R$10*SIN($BB$10-$T$10*0/3)) ->  | BD11: =IF($S$10="centro sx",$AT$10+$R$10*SIN($BB$10+$T$10*1/3),$AT$10+$R$10*SIN($BB$10-$T$10*1/3)) ->  | BE11: =IF($S$10="centro sx",$AT$10+$R$10*SIN($BB$10+$T$10*2/3),$AT$10+$R$10*SIN($BB$10-$T$10*2/3)) ->  | BF11: =IF($S$10="centro sx",$AT$10+$R$10*SIN($BB$10+$T$10*3/3),$AT$10+$R$10*SIN($BB$10-$T$10*3/3)) ->  | BG11: =IF($S$10="centro sx",$AT$10+$R$10*SIN($BB$10+$T$10*4/3),$AT$10+$R$10*SIN($BB$10-$T$10*4/3)) ->  | BH11: =IF($S$10="centro sx",$AT$10+$R$10*SIN($BB$10+$T$10*5/3),$AT$10+$R$10*SIN($BB$10-$T$10*5/3)) ->  | BI11: =IF($S$10="centro sx",$AT$10+$R$10*SIN($BB$10+$T$10*6/3),$AT$10+$R$10*SIN($BB$10-$T$10*6/3)) ->  | BK11: =W10 -> -4 | BL11: =BK11+AE10*1/6*SIN(AO10) -> -4.333333333 | BM11: =BK11+AE10*2/6*SIN(AO10) -> -4.666666667 | BN11: =BK11+AE10*3/6*SIN(AO10) -> -5 | BO11: =BK11+AE10*4/6*SIN(AO10) -> -5.333333333 | BP11: =BK11+AE10*5/6*SIN(AO10) -> -5.666666667 | BQ11: =BK11+AE10*6/6*SIN(AO10) -> -6
O12: 5 | P12: segmento | Q12: E | T12: =IF(OR(P12="",P12="segmento"),"",ASIN(0.5*AE12/R12)) ->  | U12: =IF(OR(P12="",P12="segmento"),"",PI()/2-T12) ->  | V12: =IF(Q12="","",LOOKUP(Q12,'01'!$B$2:$V$2,'01'!$B$3:$V$3)) -> -7 | W12: =IF(Q12="","",LOOKUP(Q12,'01'!$B$2:$V$2,'01'!$B$4:$V$4)) -> -6 | X12: =IF(P12="","",V13-V12) -> 0 | Y12: =IF(P12="","",W13-W12) -> 7 | Z12: =IF(P12="","",IF(P12="segmento",SQRT(X12^2+Y12^2),R12*2*T12)) -> 7 | AA12: =IF(P12="","",IF(P12="segmento",(V12+V13)/2,AX12)) -> -7 | AB12: =IF(P12="","",IF(P12="segmento",(W12+W13)/2,AY12)) -> -2.5 | AC12: =IF(P12="","",Z12*AB12) -> -17.5 | AD12: =IF(P12="","",Z12*AA12) -> -49 | AE12: =IF(P12="","",SQRT(X12^2+Y12^2)) -> 7 | AF12: =ATAN(Y12/X12) ->  | AG12: =IF(AND(X12>0,Y12>0),AF12,"") ->  | AH12: =IF(AND(X12<0,Y12>0),AF12+PI(),"") ->  | AI12: =IF(AND(X12<0,Y12<0),AF12+PI(),"") ->  | AJ12: =IF(AND(X12>0,Y12<0),AF12+2*PI(),"") ->  | AK12: =IF(AND(X12=0,Y12>0),PI()/2,"") -> 1.570796327 | AL12: =IF(AND(X12=0,Y12<0),1.5*PI(),"") ->  | AN12: =IF(AND(X12<0,Y12=0),PI(),"") ->  | AO12: =IF(P12="","",MAXA(AG12:AN13)) -> 1.570796327 | AQ12: =IF(OR(P12="",P12="segmento"),"",IF(S12="centro sx",AO12+U12,2*PI()-(U12-AO12))) ->  | AR12: =IF(OR(P12="",P12="segmento"),"",IF(AQ12>2*PI(),AQ12-2*PI(),AQ12)) ->  | AS12: =IF(OR(P12="",P12="segmento"),"",V12+R12*COS(AR12)) ->  | AT12: =IF(OR(P12="",P12="segmento"),"",W12+R12*SIN(AR12)) ->  | AU12: =IF(OR(P12="",P12="segmento"),"",R12*SIN(T12)/T12) ->  | AV12: =IF(OR(P12="",P12="segmento"),"",AR12+PI()+T12) ->  | AW12: =IF(OR(P12="",P12="segmento"),"",BB12+T12) ->  | AX12: =IF(OR(P12="",P12="segmento"),"",IF(S12="centro sx",AS12+AU12*COS(BB12+T12*3/3),AS12+AU12*COS(BB12-T12*3/3))) ->  | AY12: =IF(OR(P12="",P12="segmento"),"",IF(S12="centro sx",AT12+AU12*SIN(BB12+T12*3/3),AT12+AU12*SIN(BB12-T12*3/3))) ->  | BA12: x | BB12: =IF(AR12-PI()<0,AR12+PI(),AR12-PI()) ->  | BC12: =IF(S12="centro sx",AS12+R12*COS(BB12+T12*0/3),$AS$12+$R$12*COS($BB$12-$T12*0/3)) ->  | BD12: =IF($S$12="centro sx",$AS$12+$R$12*COS($BB$12+$T12*1/3),$AS$12+$R$12*COS($BB$12-$T12*1/3)) ->  | BE12: =IF($S$12="centro sx",$AS$12+$R$12*COS($BB$12+$T12*2/3),$AS$12+$R$12*COS($BB$12-$T12*2/3)) ->  | BF12: =IF($S$12="centro sx",$AS$12+$R$12*COS($BB$12+$T12*3/3),$AS$12+$R$12*COS($BB$12-$T12*3/3)) ->  | BG12: =IF($S$12="centro sx",$AS$12+$R$12*COS($BB$12+$T12*4/3),$AS$12+$R$12*COS($BB$12-$T12*4/3)) ->  | BH12: =IF($S$12="centro sx",$AS$12+$R$12*COS($BB$12+$T12*5/3),$AS$12+$R$12*COS($BB$12-$T12*5/3)) ->  | BI12: =IF($S$12="centro sx",$AS$12+$R$12*COS($BB$12+$T12*6/3),$AS$12+$R$12*COS($BB$12-$T12*6/3)) ->  | BK12: =V12 -> -7 | BL12: =BK12+AE12*1/6*COS(AO12) -> -7 | BM12: =BK12+AE12*2/6*COS(AO12) -> -7 | BN12: =BK12+AE12*3/6*COS(AO12) -> -7 | BO12: =BK12+AE12*4/6*COS(AO12) -> -7 | BP12: =BK12+AE12*5/6*COS(AO12) -> -7 | BQ12: =BK12+AE12*6/6*COS(AO12) -> -7 | BS12: =CONCATENATE("m",O12," = √[(x",Q13,"-x",Q12,")²+(y",Q13,"-y",Q12,,")²] = √{[(",FIXED(V13),")-(",,FIXED(V12),")]²+[(",,FIXED(W13),")-(",,FIXED(W12),")]²} = ",FIXED(Z12)," cm") -> m5 = √[(xF-xE)²+(yF-yE)²] = √{[(-7.00)-(-7.00)]²+[(1.00)-(-6.00)]²} = 7.00 cm | BT12: =CONCATENATE("x",O12," = (x",Q13,")+(x",Q12,")/2 = [(",FIXED(W12),")+(",FIXED(V12),")]/2 = ",FIXED(AA12)," cm") -> x5 = (xF)+(xE)/2 = [(-6.00)+(-7.00)]/2 = -7.00 cm | BU12: =CONCATENATE("y",O12," = (y",Q13,"+y",Q12,")/2 = [(",FIXED(W13),")+(",FIXED(W12),")]/2 = ",FIXED(AB12)," cm") -> y5 = (yF+yE)/2 = [(1.00)+(-6.00)]/2 = -2.50 cm | BV12: =CONCATENATE("m",O12," = R∙2ω = ",FIXED(R12),"x2x",FIXED(T12,4)," = ",FIXED(Z12)," cm") ->  | BW12: =CONCATENATE("OG",O12," = R∙sen(α)/α(rad) = ",FIXED(R12),"xsen(",FIXED(T12,4),"/",FIXED(T12,4)," = ",FIXED(AU12)," cm") ->  | BX12: =CONCATENATE("θ(OG) = ",FIXED(AW12,4)," rad = ",FIXED(DEGREES(AW12),2),"° deg") ->  | BY12: =CONCATENATE("x",O12," = XO + OG∙cos[θ(OG)] = ",FIXED(AS12),"+",FIXED(AU12),"xcos(",FIXED(DEGREES(AW12),4),"°) = ",FIXED(AX12)," cm") ->  | BZ12: =CONCATENATE("y",O12," = yO + OG∙sen[θ(OG)] = ",FIXED(AT12),"+",FIXED(AU12),"xcos(",FIXED(DEGREES(AW12),4),"°) = ",FIXED(AY12)," cm") ->  | CA12: =IF(P12="","",IF(P12="segmento",BS12,BV12)) -> m5 = √[(xF-xE)²+(yF-yE)²] = √{[(-7.00)-(-7.00)]²+[(1.00)-(-6.00)]²} = 7.00 cm | CB12: =IF(P12="","",IF(P12="segmento",BT12,BY12)) -> x5 = (xF)+(xE)/2 = [(-6.00)+(-7.00)]/2 = -7.00 cm | CC12: =IF(P12="","",IF(P12="segmento",BU12,BZ12)) -> y5 = (yF+yE)/2 = [(1.00)+(-6.00)]/2 = -2.50 cm | CD12: =IF(OR(P12="",P12="segmento"),"",BW12) ->  | CE12: =IF(OR(P12="",P12="segmento"),"",BX12) ->  | CF12: =IF(P12="","",CONCATENATE("S",O12,"x = m",O12,"∙y",O12," = ",FIXED(Z12),"x(",FIXED(AB12),") = ",FIXED(AD12)," cm²")) -> S5x = m5∙y5 = 7.00x(-2.50) = -49.00 cm² | CG12: =IF(P12="","",CONCATENATE("S",O12,"y = m",O12,"∙x",O12," = ",FIXED(Z12),"x(",FIXED(AA12),") = ",FIXED(AD12)," cm²")) -> S5y = m5∙x5 = 7.00x(-7.00) = -49.00 cm²
Q13: F | V13: =IF(Q13="","",LOOKUP(Q13,'01'!$B$2:$V$2,'01'!$B$3:$V$3)) -> -7 | W13: =IF(Q13="","",LOOKUP(Q13,'01'!$B$2:$V$2,'01'!$B$4:$V$4)) -> 1 | AK13: =IF(AND(X13=0,Y13>0),90,"") ->  | AL13: =IF(AND(X13=0,Y13<0),270,"") ->  | AN13: =IF(AND(X13<0,Y13=0),180,"") ->  | AO13: =MAXA(AF13:AM13) -> 0 | AX13: =IF($S$4="centro sx",$AS$4+$R$4*COS($BB$4+$T13*3/3),$AS$4+$R$4*COS($BB$4-$T13*3/3)) ->  | AY13: =IF($S$4="centro sx",$AT$4+$R$4*SIN($BB$4+$T$4*3/3),$AT$4+$R$4*SIN($BB$4-$T$4*3/3)) ->  | BA13: y | BC13: =IF($S$12="centro sx",$AT$12+$R$12*SIN($BB$12+$T$12*0/3),$AT$12+$R$12*SIN($BB$12-$T$12*0/3)) ->  | BD13: =IF($S$12="centro sx",$AT$12+$R$12*SIN($BB$12+$T$12*1/3),$AT$12+$R$12*SIN($BB$12-$T$12*1/3)) ->  | BE13: =IF($S$12="centro sx",$AT$12+$R$12*SIN($BB$12+$T$12*2/3),$AT$12+$R$12*SIN($BB$12-$T$12*2/3)) ->  | BF13: =IF($S$12="centro sx",$AT$12+$R$12*SIN($BB$12+$T$12*3/3),$AT$12+$R$12*SIN($BB$12-$T$12*3/3)) ->  | BG13: =IF($S$12="centro sx",$AT$12+$R$12*SIN($BB$12+$T$12*4/3),$AT$12+$R$12*SIN($BB$12-$T$12*4/3)) ->  | BH13: =IF($S$12="centro sx",$AT$12+$R$12*SIN($BB$12+$T$12*5/3),$AT$12+$R$12*SIN($BB$12-$T$12*5/3)) ->  | BI13: =IF($S$12="centro sx",$AT$12+$R$12*SIN($BB$12+$T$12*6/3),$AT$12+$R$12*SIN($BB$12-$T$12*6/3)) ->  | BK13: =W12 -> -6 | BL13: =BK13+AE12*1/6*SIN(AO12) -> -4.833333333 | BM13: =BK13+AE12*2/6*SIN(AO12) -> -3.666666667 | BN13: =BK13+AE12*3/6*SIN(AO12) -> -2.5 | BO13: =BK13+AE12*4/6*SIN(AO12) -> -1.333333333 | BP13: =BK13+AE12*5/6*SIN(AO12) -> -0.1666666667 | BQ13: =BK13+AE12*6/6*SIN(AO12) -> 1
O14: 6 | T14: =IF(OR(P14="",P14="segmento"),"",ASIN(0.5*AE14/R14)) ->  | U14: =IF(OR(P14="",P14="segmento"),"",PI()/2-T14) ->  | V14: =IF(Q14="","",LOOKUP(Q14,'01'!$B$2:$V$2,'01'!$B$3:$V$3)) ->  | W14: =IF(Q14="","",LOOKUP(Q14,'01'!$B$2:$V$2,'01'!$B$4:$V$4)) ->  | Y14: =IF(P14="","",W15-W14) ->  | Z14: =IF(P14="","",IF(P14="segmento",SQRT(X14^2+Y14^2),R14*2*T14)) ->  | AA14: =IF(P14="","",IF(P14="segmento",(V14+V15)/2,AX14)) ->  | AB14: =IF(P14="","",IF(P14="segmento",(W14+W15)/2,AY14)) ->  | AC14: =IF(P14="","",Z14*AB14) ->  | AD14: =IF(P14="","",Z14*AA14) ->  | AE14: =IF(P14="","",SQRT(X14^2+Y14^2)) ->  | AF14: =ATAN(Y14/X14) ->  | AG14: =IF(AND(X14>0,Y14>0),AF14,"") ->  | AH14: =IF(AND(X14<0,Y14>0),AF14+PI(),"") ->  | AI14: =IF(AND(X14<0,Y14<0),AF14+PI(),"") ->  | AJ14: =IF(AND(X14>0,Y14<0),AF14+2*PI(),"") ->  | AK14: =IF(AND(X14=0,Y14>0),PI()/2,"") ->  | AL14: =IF(AND(X14=0,Y14<0),1.5*PI(),"") ->  | AN14: =IF(AND(X14<0,Y14=0),PI(),"") ->  | AO14: =IF(P14="","",MAXA(AG14:AN15)) ->  | AQ14: =IF(OR(P14="",P14="segmento"),"",IF(S14="centro sx",AO14+U14,2*PI()-(U14-AO14))) ->  | AR14: =IF(OR(P14="",P14="segmento"),"",IF(AQ14>2*PI(),AQ14-2*PI(),AQ14)) ->  | AS14: =IF(OR(P14="",P14="segmento"),"",V14+R14*COS(AR14)) ->  | AT14: =IF(OR(P14="",P14="segmento"),"",W14+R14*SIN(AR14)) ->  | AU14: =IF(OR(P14="",P14="segmento"),"",R14*SIN(T14)/T14) ->  | AV14: =IF(OR(P14="",P14="segmento"),"",AR14+PI()+T14) ->  | AW14: =IF(OR(P14="",P14="segmento"),"",BB14+T14) ->  | AX14: =IF(OR(P14="",P14="segmento"),"",IF(S14="centro sx",AS14+AU14*COS(BB14+T14*3/3),AS14+AU14*COS(BB14-T14*3/3))) ->  | AY14: =IF(OR(P14="",P14="segmento"),"",IF(S14="centro sx",AT14+AU14*SIN(BB14+T14*3/3),AT14+AU14*SIN(BB14-T14*3/3))) ->  | BA14: x | BB14: =IF(AR14-PI()<0,AR14+PI(),AR14-PI()) ->  | BC14: =IF(S14="centro sx",AS14+R14*COS(BB14+T14*0/3),$AS$14+$R$14*COS($BB$14-$T14*0/3)) ->  | BD14: =IF($S$14="centro sx",$AS$14+$R$14*COS($BB$14+$T14*1/3),$AS$14+$R$14*COS($BB$14-$T14*1/3)) ->  | BE14: =IF($S$14="centro sx",$AS$14+$R$14*COS($BB$14+$T14*2/3),$AS$14+$R$14*COS($BB$14-$T14*2/3)) ->  | BF14: =IF($S$14="centro sx",$AS$14+$R$14*COS($BB$14+$T14*3/3),$AS$14+$R$14*COS($BB$14-$T14*3/3)) ->  | BG14: =IF($S$14="centro sx",$AS$14+$R$14*COS($BB$14+$T14*4/3),$AS$14+$R$14*COS($BB$14-$T14*4/3)) ->  | BH14: =IF($S$14="centro sx",$AS$14+$R$14*COS($BB$14+$T14*5/3),$AS$14+$R$14*COS($BB$14-$T14*5/3)) ->  | BI14: =IF($S$14="centro sx",$AS$14+$R$14*COS($BB$14+$T14*6/3),$AS$14+$R$14*COS($BB$14-$T14*6/3)) ->  | BK14: =V14 ->  | BL14: =BK14+AE14*1/6*COS(AO14) ->  | BM14: =BK14+AE14*2/6*COS(AO14) ->  | BN14: =BK14+AE14*3/6*COS(AO14) ->  | BO14: =BK14+AE14*4/6*COS(AO14) ->  | BP14: =BK14+AE14*5/6*COS(AO14) ->  | BQ14: =BK14+AE14*6/6*COS(AO14) ->  | BS14: =CONCATENATE("m",O14," = √[(x",Q15,"-x",Q14,")²+(y",Q15,"-y",Q14,,")²] = √{[(",FIXED(V15),")-(",,FIXED(V14),")]²+[(",,FIXED(W15),")-(",,FIXED(W14),")]²} = ",FIXED(Z14)," cm") ->  | BT14: =CONCATENATE("x",O14," = (x",Q15,")+(x",Q14,")/2 = [(",FIXED(W14),")+(",FIXED(V14),")]/2 = ",FIXED(AA14)," cm") ->  | BU14: =CONCATENATE("y",O14," = (y",Q15,"+y",Q14,")/2 = [(",FIXED(W15),")+(",FIXED(W14),")]/2 = ",FIXED(AB14)," cm") ->  | BV14: =CONCATENATE("m",O14," = R∙2ω = ",FIXED(R14),"x2x",FIXED(T14,4)," = ",FIXED(Z14)," cm") ->  | BW14: =CONCATENATE("OG",O14," = R∙sen(α)/α(rad) = ",FIXED(R14),"xsen(",FIXED(T14,4),"/",FIXED(T14,4)," = ",FIXED(AU14)," cm") ->  | BX14: =CONCATENATE("θ(OG) = ",FIXED(AW14,4)," rad = ",FIXED(DEGREES(AW14),2),"° deg") ->  | BY14: =CONCATENATE("x",O14," = XO + OG∙cos[θ(OG)] = ",FIXED(AS14),"+",FIXED(AU14),"xcos(",FIXED(DEGREES(AW14),4),"°) = ",FIXED(AX14)," cm") ->  | BZ14: =CONCATENATE("y",O14," = yO + OG∙sen[θ(OG)] = ",FIXED(AT14),"+",FIXED(AU14),"xcos(",FIXED(DEGREES(AW14),4),"°) = ",FIXED(AY14)," cm") ->  | CA14: =IF(P14="","",IF(P14="segmento",BS14,BV14)) ->  | CB14: =IF(P14="","",IF(P14="segmento",BT14,BY14)) ->  | CC14: =IF(P14="","",IF(P14="segmento",BU14,BZ14)) ->  | CD14: =IF(OR(P14="",P14="segmento"),"",BW14) ->  | CE14: =IF(OR(P14="",P14="segmento"),"",BX14) ->  | CF14: =IF(P14="","",CONCATENATE("S",O14,"x = m",O14,"∙y",O14," = ",FIXED(Z14),"x(",FIXED(AB14),") = ",FIXED(AD14)," cm²")) ->  | CG14: =IF(P14="","",CONCATENATE("S",O14,"y = m",O14,"∙x",O14," = ",FIXED(Z14),"x(",FIXED(AA14),") = ",FIXED(AD14)," cm²")) -> 
V15: =IF(Q15="","",LOOKUP(Q15,'01'!$B$2:$V$2,'01'!$B$3:$V$3)) ->  | W15: =IF(Q15="","",LOOKUP(Q15,'01'!$B$2:$V$2,'01'!$B$4:$V$4)) ->  | AK15: =IF(AND(X15=0,Y15>0),90,"") ->  | AL15: =IF(AND(X15=0,Y15<0),270,"") ->  | AN15: =IF(AND(X15<0,Y15=0),180,"") ->  | AO15: =MAXA(AF15:AM15) -> 0 | AX15: =IF($S$4="centro sx",$AS$4+$R$4*COS($BB$4+$T15*3/3),$AS$4+$R$4*COS($BB$4-$T15*3/3)) ->  | AY15: =IF($S$4="centro sx",$AT$4+$R$4*SIN($BB$4+$T$4*3/3),$AT$4+$R$4*SIN($BB$4-$T$4*3/3)) ->  | BA15: y | BC15: =IF($S$14="centro sx",$AT$14+$R$14*SIN($BB$14+$T$14*0/3),$AT$14+$R$14*SIN($BB$14-$T$14*0/3)) ->  | BD15: =IF($S$14="centro sx",$AT$14+$R$14*SIN($BB$14+$T$14*1/3),$AT$14+$R$14*SIN($BB$14-$T$14*1/3)) ->  | BE15: =IF($S$14="centro sx",$AT$14+$R$14*SIN($BB$14+$T$14*2/3),$AT$14+$R$14*SIN($BB$14-$T$14*2/3)) ->  | BF15: =IF($S$14="centro sx",$AT$14+$R$14*SIN($BB$14+$T$14*3/3),$AT$14+$R$14*SIN($BB$14-$T$14*3/3)) ->  | BG15: =IF($S$14="centro sx",$AT$14+$R$14*SIN($BB$14+$T$14*4/3),$AT$14+$R$14*SIN($BB$14-$T$14*4/3)) ->  | BH15: =IF($S$14="centro sx",$AT$14+$R$14*SIN($BB$14+$T$14*5/3),$AT$14+$R$14*SIN($BB$14-$T$14*5/3)) ->  | BI15: =IF($S$14="centro sx",$AT$14+$R$14*SIN($BB$14+$T$14*6/3),$AT$14+$R$14*SIN($BB$14-$T$14*6/3)) ->  | BK15: =W14 ->  | BL15: =BK15+AE14*1/6*SIN(AO14) ->  | BM15: =BK15+AE14*2/6*SIN(AO14) ->  | BN15: =BK15+AE14*3/6*SIN(AO14) ->  | BO15: =BK15+AE14*4/6*SIN(AO14) ->  | BP15: =BK15+AE14*5/6*SIN(AO14) ->  | BQ15: =BK15+AE14*6/6*SIN(AO14) -> 
O16: 7 | T16: =IF(OR(P16="",P16="segmento"),"",ASIN(0.5*AE16/R16)) ->  | U16: =IF(OR(P16="",P16="segmento"),"",PI()/2-T16) ->  | V16: =IF(Q16="","",LOOKUP(Q16,'01'!$B$2:$V$2,'01'!$B$3:$V$3)) ->  | W16: =IF(Q16="","",LOOKUP(Q16,'01'!$B$2:$V$2,'01'!$B$4:$V$4)) ->  | Y16: =IF(P16="","",W17-W16) ->  | Z16: =IF(P16="","",IF(P16="segmento",SQRT(X16^2+Y16^2),R16*2*T16)) ->  | AA16: =IF(P16="","",IF(P16="segmento",(V16+V17)/2,AX16)) ->  | AB16: =IF(P16="","",IF(P16="segmento",(W16+W17)/2,AY16)) ->  | AC16: =IF(P16="","",Z16*AB16) ->  | AD16: =IF(P16="","",Z16*AA16) ->  | AE16: =IF(P16="","",SQRT(X16^2+Y16^2)) ->  | AF16: =ATAN(Y16/X16) ->  | AG16: =IF(AND(X16>0,Y16>0),AF16,"") ->  | AH16: =IF(AND(X16<0,Y16>0),AF16+PI(),"") ->  | AI16: =IF(AND(X16<0,Y16<0),AF16+PI(),"") ->  | AJ16: =IF(AND(X16>0,Y16<0),AF16+2*PI(),"") ->  | AK16: =IF(AND(X16=0,Y16>0),PI()/2,"") ->  | AL16: =IF(AND(X16=0,Y16<0),1.5*PI(),"") ->  | AN16: =IF(AND(X16<0,Y16=0),PI(),"") ->  | AO16: =IF(P16="","",MAXA(AG16:AN17)) ->  | AQ16: =IF(OR(P16="",P16="segmento"),"",IF(S16="centro sx",AO16+U16,2*PI()-(U16-AO16))) ->  | AR16: =IF(OR(P16="",P16="segmento"),"",IF(AQ16>2*PI(),AQ16-2*PI(),AQ16)) ->  | AS16: =IF(OR(P16="",P16="segmento"),"",V16+R16*COS(AR16)) ->  | AT16: =IF(OR(P16="",P16="segmento"),"",W16+R16*SIN(AR16)) ->  | AU16: =IF(OR(P16="",P16="segmento"),"",R16*SIN(T16)/T16) ->  | AV16: =IF(OR(P16="",P16="segmento"),"",AR16+PI()+T16) ->  | AW16: =IF(OR(P16="",P16="segmento"),"",BB16+T16) ->  | AX16: =IF(OR(P16="",P16="segmento"),"",IF(S16="centro sx",AS16+AU16*COS(BB16+T16*3/3),AS16+AU16*COS(BB16-T16*3/3))) ->  | AY16: =IF(OR(P16="",P16="segmento"),"",IF(S16="centro sx",AT16+AU16*SIN(BB16+T16*3/3),AT16+AU16*SIN(BB16-T16*3/3))) ->  | BA16: x | BB16: =IF(AR16-PI()<0,AR16+PI(),AR16-PI()) ->  | BC16: =IF(S16="centro sx",AS16+R16*COS(BB16+T16*0/3),$AS$16+$R$16*COS($BB$16-$T16*0/3)) ->  | BD16: =IF($S$16="centro sx",$AS$16+$R$16*COS($BB$16+$T16*1/3),$AS$16+$R$16*COS($BB$16-$T16*1/3)) ->  | BE16: =IF($S$16="centro sx",$AS$16+$R$16*COS($BB$16+$T16*2/3),$AS$16+$R$16*COS($BB$16-$T16*2/3)) ->  | BF16: =IF($S$16="centro sx",$AS$16+$R$16*COS($BB$16+$T16*3/3),$AS$16+$R$16*COS($BB$16-$T16*3/3)) ->  | BG16: =IF($S$16="centro sx",$AS$16+$R$16*COS($BB$16+$T16*4/3),$AS$16+$R$16*COS($BB$16-$T16*4/3)) ->  | BH16: =IF($S$16="centro sx",$AS$16+$R$16*COS($BB$16+$T16*5/3),$AS$16+$R$16*COS($BB$16-$T16*5/3)) ->  | BI16: =IF($S$16="centro sx",$AS$16+$R$16*COS($BB$16+$T16*6/3),$AS$16+$R$16*COS($BB$16-$T16*6/3)) ->  | BK16: =V16 ->  | BL16: =BK16+AE16*1/6*COS(AO16) ->  | BM16: =BK16+AE16*2/6*COS(AO16) ->  | BN16: =BK16+AE16*3/6*COS(AO16) ->  | BO16: =BK16+AE16*4/6*COS(AO16) ->  | BP16: =BK16+AE16*5/6*COS(AO16) ->  | BQ16: =BK16+AE16*6/6*COS(AO16) ->  | BS16: =CONCATENATE("m",O16," = √[(x",Q17,"-x",Q16,")²+(y",Q17,"-y",Q16,,")²] = √{[(",FIXED(V17),")-(",,FIXED(V16),")]²+[(",,FIXED(W17),")-(",,FIXED(W16),")]²} = ",FIXED(Z16)," cm") ->  | BT16: =CONCATENATE("x",O16," = (x",Q17,")+(x",Q16,")/2 = [(",FIXED(W16),")+(",FIXED(V16),")]/2 = ",FIXED(AA16)," cm") ->  | BU16: =CONCATENATE("y",O16," = (y",Q17,"+y",Q16,")/2 = [(",FIXED(W17),")+(",FIXED(W16),")]/2 = ",FIXED(AB16)," cm") ->  | BV16: =CONCATENATE("m",O16," = R∙2ω = ",FIXED(R16),"x2x",FIXED(T16,4)," = ",FIXED(Z16)," cm") ->  | BW16: =CONCATENATE("OG",O16," = R∙sen(α)/α(rad) = ",FIXED(R16),"xsen(",FIXED(T16,4),"/",FIXED(T16,4)," = ",FIXED(AU16)," cm") ->  | BX16: =CONCATENATE("θ(OG) = ",FIXED(AW16,4)," rad = ",FIXED(DEGREES(AW16),2),"° deg") ->  | BY16: =CONCATENATE("x",O16," = XO + OG∙cos[θ(OG)] = ",FIXED(AS16),"+",FIXED(AU16),"xcos(",FIXED(DEGREES(AW16),4),"°) = ",FIXED(AX16)," cm") ->  | BZ16: =CONCATENATE("y",O16," = yO + OG∙sen[θ(OG)] = ",FIXED(AT16),"+",FIXED(AU16),"xcos(",FIXED(DEGREES(AW16),4),"°) = ",FIXED(AY16)," cm") ->  | CA16: =IF(P16="","",IF(P16="segmento",BS16,BV16)) ->  | CB16: =IF(P16="","",IF(P16="segmento",BT16,BY16)) ->  | CC16: =IF(P16="","",IF(P16="segmento",BU16,BZ16)) ->  | CD16: =IF(OR(P16="",P16="segmento"),"",BW16) ->  | CE16: =IF(OR(P16="",P16="segmento"),"",BX16) ->  | CF16: =IF(P16="","",CONCATENATE("S",O16,"x = m",O16,"∙y",O16," = ",FIXED(Z16),"x(",FIXED(AB16),") = ",FIXED(AD16)," cm²")) ->  | CG16: =IF(P16="","",CONCATENATE("S",O16,"y = m",O16,"∙x",O16," = ",FIXED(Z16),"x(",FIXED(AA16),") = ",FIXED(AD16)," cm²")) -> 
V17: =IF(Q17="","",LOOKUP(Q17,'01'!$B$2:$V$2,'01'!$B$3:$V$3)) ->  | W17: =IF(Q17="","",LOOKUP(Q17,'01'!$B$2:$V$2,'01'!$B$4:$V$4)) ->  | AK17: =IF(AND(X17=0,Y17>0),90,"") ->  | AL17: =IF(AND(X17=0,Y17<0),270,"") ->  | AN17: =IF(AND(X17<0,Y17=0),180,"") ->  | AO17: =MAXA(AF17:AM17) -> 0 | AX17: =IF($S$4="centro sx",$AS$4+$R$4*COS($BB$4+$T17*3/3),$AS$4+$R$4*COS($BB$4-$T17*3/3)) ->  | AY17: =IF($S$4="centro sx",$AT$4+$R$4*SIN($BB$4+$T$4*3/3),$AT$4+$R$4*SIN($BB$4-$T$4*3/3)) ->  | BA17: y | BC17: =IF($S$16="centro sx",$AT$16+$R$16*SIN($BB$16+$T$16*0/3),$AT$16+$R$16*SIN($BB$16-$T$16*0/3)) ->  | BD17: =IF($S$16="centro sx",$AT$16+$R$16*SIN($BB$16+$T$16*1/3),$AT$16+$R$16*SIN($BB$16-$T$16*1/3)) ->  | BE17: =IF($S$16="centro sx",$AT$16+$R$16*SIN($BB$16+$T$16*2/3),$AT$16+$R$16*SIN($BB$16-$T$16*2/3)) ->  | BF17: =IF($S$16="centro sx",$AT$16+$R$16*SIN($BB$16+$T$16*3/3),$AT$16+$R$16*SIN($BB$16-$T$16*3/3)) ->  | BG17: =IF($S$16="centro sx",$AT$16+$R$16*SIN($BB$16+$T$16*4/3),$AT$16+$R$16*SIN($BB$16-$T$16*4/3)) ->  | BH17: =IF($S$16="centro sx",$AT$16+$R$16*SIN($BB$16+$T$16*5/3),$AT$16+$R$16*SIN($BB$16-$T$16*5/3)) ->  | BI17: =IF($S$16="centro sx",$AT$16+$R$16*SIN($BB$16+$T$16*6/3),$AT$16+$R$16*SIN($BB$16-$T$16*6/3)) ->  | BK17: =W16 ->  | BL17: =BK17+AE16*1/6*SIN(AO16) ->  | BM17: =BK17+AE16*2/6*SIN(AO16) ->  | BN17: =BK17+AE16*3/6*SIN(AO16) ->  | BO17: =BK17+AE16*4/6*SIN(AO16) ->  | BP17: =BK17+AE16*5/6*SIN(AO16) ->  | BQ17: =BK17+AE16*6/6*SIN(AO16) -> 
O18: 8 | T18: =IF(OR(P18="",P18="segmento"),"",ASIN(0.5*AE18/R18)) ->  | U18: =IF(OR(P18="",P18="segmento"),"",PI()/2-T18) ->  | V18: =IF(Q18="","",LOOKUP(Q18,'01'!$B$2:$V$2,'01'!$B$3:$V$3)) ->  | W18: =IF(Q18="","",LOOKUP(Q18,'01'!$B$2:$V$2,'01'!$B$4:$V$4)) ->  | Y18: =IF(P18="","",W19-W18) ->  | Z18: =IF(P18="","",IF(P18="segmento",SQRT(X18^2+Y18^2),R18*2*T18)) ->  | AA18: =IF(P18="","",IF(P18="segmento",(V18+V19)/2,AX18)) ->  | AB18: =IF(P18="","",IF(P18="segmento",(W18+W19)/2,AY18)) ->  | AC18: =IF(P18="","",Z18*AB18) ->  | AD18: =IF(P18="","",Z18*AA18) ->  | AE18: =IF(P18="","",SQRT(X18^2+Y18^2)) ->  | AF18: =ATAN(Y18/X18) ->  | AG18: =IF(AND(X18>0,Y18>0),AF18,"") ->  | AH18: =IF(AND(X18<0,Y18>0),AF18+PI(),"") ->  | AI18: =IF(AND(X18<0,Y18<0),AF18+PI(),"") ->  | AJ18: =IF(AND(X18>0,Y18<0),AF18+2*PI(),"") ->  | AK18: =IF(AND(X18=0,Y18>0),PI()/2,"") ->  | AL18: =IF(AND(X18=0,Y18<0),1.5*PI(),"") ->  | AN18: =IF(AND(X18<0,Y18=0),PI(),"") ->  | AO18: =IF(P18="","",MAXA(AG18:AN19)) ->  | AQ18: =IF(OR(P18="",P18="segmento"),"",IF(S18="centro sx",AO18+U18,2*PI()-(U18-AO18))) ->  | AR18: =IF(OR(P18="",P18="segmento"),"",IF(AQ18>2*PI(),AQ18-2*PI(),AQ18)) ->  | AS18: =IF(OR(P18="",P18="segmento"),"",V18+R18*COS(AR18)) ->  | AT18: =IF(OR(P18="",P18="segmento"),"",W18+R18*SIN(AR18)) ->  | AU18: =IF(OR(P18="",P18="segmento"),"",R18*SIN(T18)/T18) ->  | AV18: =IF(OR(P18="",P18="segmento"),"",AR18+PI()+T18) ->  | AW18: =IF(OR(P18="",P18="segmento"),"",BB18+T18) ->  | AX18: =IF(OR(P18="",P18="segmento"),"",IF(S18="centro sx",AS18+AU18*COS(BB18+T18*3/3),AS18+AU18*COS(BB18-T18*3/3))) ->  | AY18: =IF(OR(P18="",P18="segmento"),"",IF(S18="centro sx",AT18+AU18*SIN(BB18+T18*3/3),AT18+AU18*SIN(BB18-T18*3/3))) ->  | BA18: x | BB18: =IF(AR18-PI()<0,AR18+PI(),AR18-PI()) ->  | BC18: =IF(S18="centro sx",AS18+R18*COS(BB18+T18*0/3),$AS$18+$R$18*COS($BB$18-$T18*0/3)) ->  | BD18: =IF($S$18="centro sx",$AS$18+$R$18*COS($BB$18+$T18*1/3),$AS$18+$R$18*COS($BB$18-$T18*1/3)) ->  | BE18: =IF($S$18="centro sx",$AS$18+$R$18*COS($BB$18+$T18*2/3),$AS$18+$R$18*COS($BB$18-$T18*2/3)) ->  | BF18: =IF($S$18="centro sx",$AS$18+$R$18*COS($BB$18+$T18*3/3),$AS$18+$R$18*COS($BB$18-$T18*3/3)) ->  | BG18: =IF($S$18="centro sx",$AS$18+$R$18*COS($BB$18+$T18*4/3),$AS$18+$R$18*COS($BB$18-$T18*4/3)) ->  | BH18: =IF($S$18="centro sx",$AS$18+$R$18*COS($BB$18+$T18*5/3),$AS$18+$R$18*COS($BB$18-$T18*5/3)) ->  | BI18: =IF($S$18="centro sx",$AS$18+$R$18*COS($BB$18+$T18*6/3),$AS$18+$R$18*COS($BB$18-$T18*6/3)) ->  | BK18: =V18 ->  | BL18: =BK18+AE18*1/6*COS(AO18) ->  | BM18: =BK18+AE18*2/6*COS(AO18) ->  | BN18: =BK18+AE18*3/6*COS(AO18) ->  | BO18: =BK18+AE18*4/6*COS(AO18) ->  | BP18: =BK18+AE18*5/6*COS(AO18) ->  | BQ18: =BK18+AE18*6/6*COS(AO18) ->  | BS18: =CONCATENATE("m",O18," = √[(x",Q19,"-x",Q18,")²+(y",Q19,"-y",Q18,,")²] = √{[(",FIXED(V19),")-(",,FIXED(V18),")]²+[(",,FIXED(W19),")-(",,FIXED(W18),")]²} = ",FIXED(Z18)," cm") ->  | BT18: =CONCATENATE("x",O18," = (x",Q19,")+(x",Q18,")/2 = [(",FIXED(W18),")+(",FIXED(V18),")]/2 = ",FIXED(AA18)," cm") ->  | BU18: =CONCATENATE("y",O18," = (y",Q19,"+y",Q18,")/2 = [(",FIXED(W19),")+(",FIXED(W18),")]/2 = ",FIXED(AB18)," cm") ->  | BV18: =CONCATENATE("m",O18," = R∙2ω = ",FIXED(R18),"x2x",FIXED(T18,4)," = ",FIXED(Z18)," cm") ->  | BW18: =CONCATENATE("OG",O18," = R∙sen(α)/α(rad) = ",FIXED(R18),"xsen(",FIXED(T18,4),"/",FIXED(T18,4)," = ",FIXED(AU18)," cm") ->  | BX18: =CONCATENATE("θ(OG) = ",FIXED(AW18,4)," rad = ",FIXED(DEGREES(AW18),2),"° deg") ->  | BY18: =CONCATENATE("x",O18," = XO + OG∙cos[θ(OG)] = ",FIXED(AS18),"+",FIXED(AU18),"xcos(",FIXED(DEGREES(AW18),4),"°) = ",FIXED(AX18)," cm") ->  | BZ18: =CONCATENATE("y",O18," = yO + OG∙sen[θ(OG)] = ",FIXED(AT18),"+",FIXED(AU18),"xcos(",FIXED(DEGREES(AW18),4),"°) = ",FIXED(AY18)," cm") ->  | CA18: =IF(P18="","",IF(P18="segmento",BS18,BV18)) ->  | CB18: =IF(P18="","",IF(P18="segmento",BT18,BY18)) ->  | CC18: =IF(P18="","",IF(P18="segmento",BU18,BZ18)) ->  | CD18: =IF(OR(P18="",P18="segmento"),"",BW18) ->  | CE18: =IF(OR(P18="",P18="segmento"),"",BX18) ->  | CF18: =IF(P18="","",CONCATENATE("S",O18,"x = m",O18,"∙y",O18," = ",FIXED(Z18),"x(",FIXED(AB18),") = ",FIXED(AD18)," cm²")) ->  | CG18: =IF(P18="","",CONCATENATE("S",O18,"y = m",O18,"∙x",O18," = ",FIXED(Z18),"x(",FIXED(AA18),") = ",FIXED(AD18)," cm²")) -> 
V19: =IF(Q19="","",LOOKUP(Q19,'01'!$B$2:$V$2,'01'!$B$3:$V$3)) ->  | W19: =IF(Q19="","",LOOKUP(Q19,'01'!$B$2:$V$2,'01'!$B$4:$V$4)) ->  | AK19: =IF(AND(X19=0,Y19>0),90,"") ->  | AL19: =IF(AND(X19=0,Y19<0),270,"") ->  | AN19: =IF(AND(X19<0,Y19=0),180,"") ->  | AO19: =MAXA(AF19:AM19) -> 0 | AX19: =IF($S$4="centro sx",$AS$4+$R$4*COS($BB$4+$T19*3/3),$AS$4+$R$4*COS($BB$4-$T19*3/3)) ->  | AY19: =IF($S$4="centro sx",$AT$4+$R$4*SIN($BB$4+$T$4*3/3),$AT$4+$R$4*SIN($BB$4-$T$4*3/3)) ->  | BA19: y | BC19: =IF($S$18="centro sx",$AT$16+$R$18*SIN($BB$18+$T$18*0/3),$AT$16+$R$18*SIN($BB$18-$T$18*0/3)) ->  | BD19: =IF($S$18="centro sx",$AT$18+$R$18*SIN($BB$18+$T$18*1/3),$AT$18+$R$18*SIN($BB$18-$T$18*1/3)) ->  | BE19: =IF($S$18="centro sx",$AT$18+$R$18*SIN($BB$18+$T$18*2/3),$AT$18+$R$18*SIN($BB$18-$T$18*2/3)) ->  | BF19: =IF($S$18="centro sx",$AT$18+$R$18*SIN($BB$18+$T$18*3/3),$AT$18+$R$18*SIN($BB$18-$T$18*3/3)) ->  | BG19: =IF($S$18="centro sx",$AT$18+$R$18*SIN($BB$18+$T$18*4/3),$AT$18+$R$18*SIN($BB$18-$T$18*4/3)) ->  | BH19: =IF($S$18="centro sx",$AT$18+$R$18*SIN($BB$18+$T$18*5/3),$AT$18+$R$18*SIN($BB$18-$T$18*5/3)) ->  | BI19: =IF($S$18="centro sx",$AT$18+$R$18*SIN($BB$18+$T$18*6/3),$AT$18+$R$18*SIN($BB$18-$T$18*6/3)) ->  | BK19: =W18 ->  | BL19: =BK19+AE18*1/6*SIN(AO18) ->  | BM19: =BK19+AE18*2/6*SIN(AO18) ->  | BN19: =BK19+AE18*3/6*SIN(AO18) ->  | BO19: =BK19+AE18*4/6*SIN(AO18) ->  | BP19: =BK19+AE18*5/6*SIN(AO18) ->  | BQ19: =BK19+AE18*6/6*SIN(AO18) -> 
O20: 9 | T20: =IF(OR(P20="",P20="segmento"),"",ASIN(0.5*AE20/R20)) ->  | U20: =IF(OR(P20="",P20="segmento"),"",PI()/2-T20) ->  | V20: =IF(Q20="","",LOOKUP(Q20,'01'!$B$2:$V$2,'01'!$B$3:$V$3)) ->  | W20: =IF(Q20="","",LOOKUP(Q20,'01'!$B$2:$V$2,'01'!$B$4:$V$4)) ->  | Y20: =IF(P20="","",W21-W20) ->  | Z20: =IF(P20="","",IF(P20="segmento",SQRT(X20^2+Y20^2),R20*2*T20)) ->  | AA20: =IF(P20="","",IF(P20="segmento",(V20+V21)/2,AX20)) ->  | AB20: =IF(P20="","",IF(P20="segmento",(W20+W21)/2,AY20)) ->  | AC20: =IF(P20="","",Z20*AB20) ->  | AD20: =IF(P20="","",Z20*AA20) ->  | AE20: =IF(P20="","",SQRT(X20^2+Y20^2)) ->  | AF20: =ATAN(Y20/X20) ->  | AG20: =IF(AND(X20>0,Y20>0),AF20,"") ->  | AH20: =IF(AND(X20<0,Y20>0),AF20+PI(),"") ->  | AI20: =IF(AND(X20<0,Y20<0),AF20+PI(),"") ->  | AJ20: =IF(AND(X20>0,Y20<0),AF20+2*PI(),"") ->  | AK20: =IF(AND(X20=0,Y20>0),PI()/2,"") ->  | AL20: =IF(AND(X20=0,Y20<0),1.5*PI(),"") ->  | AN20: =IF(AND(X20<0,Y20=0),PI(),"") ->  | AO20: =IF(P20="","",MAXA(AG20:AN21)) ->  | AQ20: =IF(OR(P20="",P20="segmento"),"",IF(S20="centro sx",AO20+U20,2*PI()-(U20-AO20))) ->  | AR20: =IF(OR(P20="",P20="segmento"),"",IF(AQ20>2*PI(),AQ20-2*PI(),AQ20)) ->  | AS20: =IF(OR(P20="",P20="segmento"),"",V20+R20*COS(AR20)) ->  | AT20: =IF(OR(P20="",P20="segmento"),"",W20+R20*SIN(AR20)) ->  | AU20: =IF(OR(P20="",P20="segmento"),"",R20*SIN(T20)/T20) ->  | AV20: =IF(OR(P20="",P20="segmento"),"",AR20+PI()+T20) ->  | AW20: =IF(OR(P20="",P20="segmento"),"",BB20+T20) ->  | AX20: =IF(OR(P20="",P20="segmento"),"",IF(S20="centro sx",AS20+AU20*COS(BB20+T20*3/3),AS20+AU20*COS(BB20-T20*3/3))) ->  | AY20: =IF(OR(P20="",P20="segmento"),"",IF(S20="centro sx",AT20+AU20*SIN(BB20+T20*3/3),AT20+AU20*SIN(BB20-T20*3/3))) ->  | BA20: x | BB20: =IF(AR20-PI()<0,AR20+PI(),AR20-PI()) ->  | BC20: =IF(S20="centro sx",AS20+R20*COS(BB20+T20*0/3),$AS$20+$R$20*COS($BB$20-$T20*0/3)) ->  | BD20: =IF($S$20="centro sx",$AS$20+$R$20*COS($BB$20+$T20*1/3),$AS$20+$R$20*COS($BB$6-$T20*1/3)) ->  | BE20: =IF($S$20="centro sx",$AS$20+$R$20*COS($BB$20+$T20*2/3),$AS$20+$R$20*COS($BB$20-$T20*2/3)) ->  | BF20: =IF($S$20="centro sx",$AS$20+$R$20*COS($BB$20+$T20*3/3),$AS$20+$R$20*COS($BB$20-$T20*3/3)) ->  | BG20: =IF($S$20="centro sx",$AS$20+$R$20*COS($BB$20+$T20*4/3),$AS$20+$R$20*COS($BB$20-$T20*4/3)) ->  | BH20: =IF($S$20="centro sx",$AS$20+$R$20*COS($BB$20+$T20*5/3),$AS$20+$R$20*COS($BB$20-$T20*5/3)) ->  | BI20: =IF($S$20="centro sx",$AS$20+$R$20*COS($BB$20+$T20*6/3),$AS$20+$R$20*COS($BB$20-$T20*6/3)) ->  | BK20: =V20 ->  | BL20: =BK20+AE20*1/6*COS(AO20) ->  | BM20: =BK20+AE20*2/6*COS(AO20) ->  | BN20: =BK20+AE20*3/6*COS(AO20) ->  | BO20: =BK20+AE20*4/6*COS(AO20) ->  | BP20: =BK20+AE20*5/6*COS(AO20) ->  | BQ20: =BK20+AE20*6/6*COS(AO20) ->  | BS20: =CONCATENATE("m",O20," = √[(x",Q21,"-x",Q20,")²+(y",Q21,"-y",Q20,,")²] = √{[(",FIXED(V21),")-(",,FIXED(V20),")]²+[(",,FIXED(W21),")-(",,FIXED(W20),")]²} = ",FIXED(Z20)," cm") ->  | BT20: =CONCATENATE("x",O20," = (x",Q21,")+(x",Q20,")/2 = [(",FIXED(W20),")+(",FIXED(V20),")]/2 = ",FIXED(AA20)," cm") ->  | BU20: =CONCATENATE("y",O20," = (y",Q21,"+y",Q20,")/2 = [(",FIXED(W21),")+(",FIXED(W20),")]/2 = ",FIXED(AB20)," cm") ->  | BV20: =CONCATENATE("m",O20," = R∙2ω = ",FIXED(R20),"x2x",FIXED(T20,4)," = ",FIXED(Z20)," cm") ->  | BW20: =CONCATENATE("OG",O20," = R∙sen(α)/α(rad) = ",FIXED(R20),"xsen(",FIXED(T20,4),"/",FIXED(T20,4)," = ",FIXED(AU20)," cm") ->  | BX20: =CONCATENATE("θ(OG) = ",FIXED(AW20,4)," rad = ",FIXED(DEGREES(AW20),2),"° deg") ->  | BY20: =CONCATENATE("x",O20," = XO + OG∙cos[θ(OG)] = ",FIXED(AS20),"+",FIXED(AU20),"xcos(",FIXED(DEGREES(AW20),4),"°) = ",FIXED(AX20)," cm") ->  | BZ20: =CONCATENATE("y",O20," = yO + OG∙sen[θ(OG)] = ",FIXED(AT20),"+",FIXED(AU20),"xcos(",FIXED(DEGREES(AW20),4),"°) = ",FIXED(AY20)," cm") ->  | CA20: =IF(P20="","",IF(P20="segmento",BS20,BV20)) ->  | CB20: =IF(P20="","",IF(P20="segmento",BT20,BY20)) ->  | CC20: =IF(P20="","",IF(P20="segmento",BU20,BZ20)) ->  | CD20: =IF(OR(P20="",P20="segmento"),"",BW20) ->  | CE20: =IF(OR(P20="",P20="segmento"),"",BX20) ->  | CF20: =IF(P20="","",CONCATENATE("S",O20,"x = m",O20,"∙y",O20," = ",FIXED(Z20),"x(",FIXED(AB20),") = ",FIXED(AD20)," cm²")) ->  | CG20: =IF(P20="","",CONCATENATE("S",O20,"y = m",O20,"∙x",O20," = ",FIXED(Z20),"x(",FIXED(AA20),") = ",FIXED(AD20)," cm²")) -> 
V21: =IF(Q21="","",LOOKUP(Q21,'01'!$B$2:$V$2,'01'!$B$3:$V$3)) ->  | W21: =IF(Q21="","",LOOKUP(Q21,'01'!$B$2:$V$2,'01'!$B$4:$V$4)) ->  | AK21: =IF(AND(X21=0,Y21>0),90,"") ->  | AL21: =IF(AND(X21=0,Y21<0),270,"") ->  | AN21: =IF(AND(X21<0,Y21=0),180,"") ->  | AO21: =MAXA(AF21:AM21) -> 0 | AX21: =IF($S$4="centro sx",$AS$4+$R$4*COS($BB$4+$T21*3/3),$AS$4+$R$4*COS($BB$4-$T21*3/3)) ->  | AY21: =IF($S$4="centro sx",$AT$4+$R$4*SIN($BB$4+$T$4*3/3),$AT$4+$R$4*SIN($BB$4-$T$4*3/3)) ->  | BA21: y | BC21: =IF($S$20="centro sx",$AT$20+$R$20*SIN($BB$20+$T$20*0/3),$AT$20+$R$20*SIN($BB$20-$T$20*0/3)) ->  | BD21: =IF($S$20="centro sx",$AT$20+$R$20*SIN($BB$20+$T$20*1/3),$AT$20+$R$20*SIN($BB$20-$T$20*1/3)) ->  | BE21: =IF($S$20="centro sx",$AT$20+$R$20*SIN($BB$20+$T$20*2/3),$AT$20+$R$20*SIN($BB$20-$T$20*2/3)) ->  | BF21: =IF($S$20="centro sx",$AT$20+$R$20*SIN($BB$20+$T$20*3/3),$AT$20+$R$20*SIN($BB$20-$T$20*3/3)) ->  | BG21: =IF($S$20="centro sx",$AT$20+$R$20*SIN($BB$20+$T$20*4/3),$AT$20+$R$20*SIN($BB$20-$T$20*4/3)) ->  | BH21: =IF($S$20="centro sx",$AT$20+$R$20*SIN($BB$20+$T$20*5/3),$AT$20+$R$20*SIN($BB$20-$T$20*5/3)) ->  | BI21: =IF($S$20="centro sx",$AT$20+$R$20*SIN($BB$20+$T$20*6/3),$AT$20+$R$20*SIN($BB$20-$T$20*6/3)) ->  | BK21: =W20 ->  | BL21: =BK21+AE20*1/6*SIN(AO20) ->  | BM21: =BK21+AE20*2/6*SIN(AO20) ->  | BN21: =BK21+AE20*3/6*SIN(AO20) ->  | BO21: =BK21+AE20*4/6*SIN(AO20) ->  | BP21: =BK21+AE20*5/6*SIN(AO20) ->  | BQ21: =BK21+AE20*6/6*SIN(AO20) -> 
O22: 10 | T22: =IF(OR(P22="",P22="segmento"),"",ASIN(0.5*AE22/R22)) ->  | U22: =IF(OR(P22="",P22="segmento"),"",PI()/2-T22) ->  | V22: =IF(Q22="","",LOOKUP(Q22,'01'!$B$2:$V$2,'01'!$B$3:$V$3)) ->  | W22: =IF(Q22="","",LOOKUP(Q22,'01'!$B$2:$V$2,'01'!$B$4:$V$4)) ->  | Y22: =IF(P22="","",W23-W22) ->  | Z22: =IF(P22="","",IF(P22="segmento",SQRT(X22^2+Y22^2),R22*2*T22)) ->  | AA22: =IF(P22="","",IF(P22="segmento",(V22+V23)/2,AX22)) ->  | AB22: =IF(P22="","",IF(P22="segmento",(W22+W23)/2,AY22)) ->  | AC22: =IF(P22="","",Z22*AB22) ->  | AD22: =IF(P22="","",Z22*AA22) ->  | AE22: =IF(P22="","",SQRT(X22^2+Y22^2)) ->  | AF22: =ATAN(Y22/X22) ->  | AG22: =IF(AND(X22>0,Y22>0),AF22,"") ->  | AH22: =IF(AND(X22<0,Y22>0),AF22+PI(),"") ->  | AI22: =IF(AND(X22<0,Y22<0),AF22+PI(),"") ->  | AJ22: =IF(AND(X22>0,Y22<0),AF22+2*PI(),"") ->  | AK22: =IF(AND(X22=0,Y22>0),PI()/2,"") ->  | AL22: =IF(AND(X22=0,Y22<0),1.5*PI(),"") ->  | AN22: =IF(AND(X22<0,Y22=0),PI(),"") ->  | AO22: =IF(P22="","",MAXA(AG22:AN23)) ->  | AQ22: =IF(OR(P22="",P22="segmento"),"",IF(S22="centro sx",AO22+U22,2*PI()-(U22-AO22))) ->  | AR22: =IF(OR(P22="",P22="segmento"),"",IF(AQ22>2*PI(),AQ22-2*PI(),AQ22)) ->  | AS22: =IF(OR(P22="",P22="segmento"),"",V22+R22*COS(AR22)) ->  | AT22: =IF(OR(P22="",P22="segmento"),"",W22+R22*SIN(AR22)) ->  | AU22: =IF(OR(P22="",P22="segmento"),"",R22*SIN(T22)/T22) ->  | AV22: =IF(OR(P22="",P22="segmento"),"",AR22+PI()+T22) ->  | AW22: =IF(OR(P22="",P22="segmento"),"",BB22+T22) ->  | AX22: =IF(OR(P22="",P22="segmento"),"",IF(S22="centro sx",AS22+AU22*COS(BB22+T22*3/3),AS22+AU22*COS(BB22-T22*3/3))) ->  | AY22: =IF(OR(P22="",P22="segmento"),"",IF(S22="centro sx",AT22+AU22*SIN(BB22+T22*3/3),AT22+AU22*SIN(BB22-T22*3/3))) ->  | BA22: x | BB22: =IF(AR22-PI()<0,AR22+PI(),AR22-PI()) ->  | BC22: =IF(S22="centro sx",AS22+R22*COS(BB22+T22*0/3),$AS$22+$R$22*COS($BB$22-$T22*0/3)) ->  | BD22: =IF($S$22="centro sx",$AS$22+$R$22*COS($BB$22+$T22*1/3),$AS$22+$R$22*COS($BB$22-$T22*1/3)) ->  | BE22: =IF($S$22="centro sx",$AS$22+$R$22*COS($BB$22+$T22*2/3),$AS$22+$R$22*COS($BB$22-$T22*2/3)) ->  | BF22: =IF($S$22="centro sx",$AS$22+$R$22*COS($BB$22+$T22*3/3),$AS$22+$R$22*COS($BB$22-$T22*3/3)) ->  | BG22: =IF($S$22="centro sx",$AS$22+$R$22*COS($BB$22+$T22*4/3),$AS$22+$R$22*COS($BB$22-$T22*4/3)) ->  | BH22: =IF($S$22="centro sx",$AS$22+$R$22*COS($BB$22+$T22*5/3),$AS$22+$R$22*COS($BB$22-$T22*5/3)) ->  | BI22: =IF($S$22="centro sx",$AS$22+$R$22*COS($BB$22+$T22*6/3),$AS$22+$R$22*COS($BB$22-$T22*6/3)) ->  | BK22: =V22 ->  | BL22: =BK22+AE22*1/6*COS(AO22) ->  | BM22: =BK22+AE22*2/6*COS(AO22) ->  | BN22: =BK22+AE22*3/6*COS(AO22) ->  | BO22: =BK22+AE22*4/6*COS(AO22) ->  | BP22: =BK22+AE22*5/6*COS(AO22) ->  | BQ22: =BK22+AE22*6/6*COS(AO22) ->  | BS22: =CONCATENATE("m",O22," = √[(x",Q23,"-x",Q22,")²+(y",Q23,"-y",Q22,,")²] = √{[(",FIXED(V23),")-(",,FIXED(V22),")]²+[(",,FIXED(W23),")-(",,FIXED(W22),")]²} = ",FIXED(Z22)," cm") ->  | BT22: =CONCATENATE("x",O22," = (x",Q23,")+(x",Q22,")/2 = [(",FIXED(W22),")+(",FIXED(V22),")]/2 = ",FIXED(AA22)," cm") ->  | BU22: =CONCATENATE("y",O22," = (y",Q23,"+y",Q22,")/2 = [(",FIXED(W23),")+(",FIXED(W22),")]/2 = ",FIXED(AB22)," cm") ->  | BV22: =CONCATENATE("m",O22," = R∙2ω = ",FIXED(R22),"x2x",FIXED(T22,4)," = ",FIXED(Z22)," cm") ->  | BW22: =CONCATENATE("OG",O22," = R∙sen(α)/α(rad) = ",FIXED(R22),"xsen(",FIXED(T22,4),"/",FIXED(T22,4)," = ",FIXED(AU22)," cm") ->  | BX22: =CONCATENATE("θ(OG) = ",FIXED(AW22,4)," rad = ",FIXED(DEGREES(AW22),2),"° deg") ->  | BY22: =CONCATENATE("x",O22," = XO + OG∙cos[θ(OG)] = ",FIXED(AS22),"+",FIXED(AU22),"xcos(",FIXED(DEGREES(AW22),4),"°) = ",FIXED(AX22)," cm") ->  | BZ22: =CONCATENATE("y",O22," = yO + OG∙sen[θ(OG)] = ",FIXED(AT22),"+",FIXED(AU22),"xcos(",FIXED(DEGREES(AW22),4),"°) = ",FIXED(AY22)," cm") ->  | CA22: =IF(P22="","",IF(P22="segmento",BS22,BV22)) ->  | CB22: =IF(P22="","",IF(P22="segmento",BT22,BY22)) ->  | CC22: =IF(P22="","",IF(P22="segmento",BU22,BZ22)) ->  | CD22: =IF(OR(P22="",P22="segmento"),"",BW22) ->  | CE22: =IF(OR(P22="",P22="segmento"),"",BX22) ->  | CF22: =IF(P22="","",CONCATENATE("S",O22,"x = m",O22,"∙y",O22," = ",FIXED(Z22),"x(",FIXED(AB22),") = ",FIXED(AD22)," cm²")) ->  | CG22: =IF(P22="","",CONCATENATE("S",O22,"y = m",O22,"∙x",O22," = ",FIXED(Z22),"x(",FIXED(AA22),") = ",FIXED(AD22)," cm²")) -> 
V23: =IF(Q23="","",LOOKUP(Q23,'01'!$B$2:$V$2,'01'!$B$3:$V$3)) ->  | W23: =IF(Q23="","",LOOKUP(Q23,'01'!$B$2:$V$2,'01'!$B$4:$V$4)) ->  | AK23: =IF(AND(X23=0,Y23>0),90,"") ->  | AL23: =IF(AND(X23=0,Y23<0),270,"") ->  | AN23: =IF(AND(X23<0,Y23=0),180,"") ->  | AO23: =MAXA(AF23:AM23) -> 0 | AX23: =IF($S$4="centro sx",$AS$4+$R$4*COS($BB$4+$T23*3/3),$AS$4+$R$4*COS($BB$4-$T23*3/3)) ->  | AY23: =IF($S$4="centro sx",$AT$4+$R$4*SIN($BB$4+$T$4*3/3),$AT$4+$R$4*SIN($BB$4-$T$4*3/3)) ->  | BA23: y | BC23: =IF($S$22="centro sx",$AT$22+$R$22*SIN($BB$22+$T$22*0/3),$AT$22+$R$22*SIN($BB$22-$T$22*0/3)) ->  | BD23: =IF($S$22="centro sx",$AT$22+$R$22*SIN($BB$22+$T$22*1/3),$AT$22+$R$22*SIN($BB$22-$T$22*1/3)) ->  | BE23: =IF($S$22="centro sx",$AT$22+$R$22*SIN($BB$22+$T$22*2/3),$AT$22+$R$22*SIN($BB$22-$T$22*2/3)) ->  | BF23: =IF($S$22="centro sx",$AT$22+$R$22*SIN($BB$22+$T$22*3/3),$AT$22+$R$22*SIN($BB$22-$T$22*3/3)) ->  | BG23: =IF($S$22="centro sx",$AT$22+$R$22*SIN($BB$22+$T$22*4/3),$AT$22+$R$22*SIN($BB$22-$T$22*4/3)) ->  | BH23: =IF($S$22="centro sx",$AT$22+$R$22*SIN($BB$22+$T$22*5/3),$AT$22+$R$22*SIN($BB$22-$T$22*5/3)) ->  | BI23: =IF($S$22="centro sx",$AT$22+$R$22*SIN($BB$22+$T$22*6/3),$AT$22+$R$22*SIN($BB$22-$T$22*6/3)) ->  | BK23: =W22 ->  | BL23: =BK23+AE22*1/6*SIN(AO22) ->  | BM23: =BK23+AE22*2/6*SIN(AO22) ->  | BN23: =BK23+AE22*3/6*SIN(AO22) ->  | BO23: =BK23+AE22*4/6*SIN(AO22) ->  | BP23: =BK23+AE22*5/6*SIN(AO22) ->  | BQ23: =BK23+AE22*6/6*SIN(AO22) -> 
Z24: =SUM(Z4:Z23) -> 48.00405014 | AC24: =SUM(AC4:AC23) -> -15.74877707 | AD24: =SUM(AD4:AD23) -> 163.5746993
A26: ** centro a destra (Cdx) centro a sinistra (Csx) si trovano, indicata la corda con IJ, seguendo, in verso orario, la sequenza I-Csx,J,Cdx, | T26: =CONCATENATE("XG = Sy/∑m = ",FIXED(AD24),"/",FIXED(Z24), " =" ) -> XG = Sy/∑m = 163.57/48.00 = | U26: =AD24/Z24 -> 3.407518715 | V26: cm
T27: =CONCATENATE("YG = Sx/∑m = ",FIXED(AC24),"/",FIXED(Z24), " =" ) -> YG = Sx/∑m = -15.75/48.00 = | U27: =AC24/Z24 -> -0.3280718403 | V27: cm
B28: =IF(P5="","",CONCATENATE("Fig. ",O5," - ",P5)) -> 
B29: =IF(P4="","",CONCATENATE("Fig.",O4," - ",P4)) -> Fig.1 - segmento
B30: =CA4 -> m1 = √[(xB-xA)²+(yB-yA)²] = √{[(8.00)-(-2.00)]²+[(6.00)-(5.00)]²} = 10.05 cm | P30: =IF(P4="arco circ.",CONCATENATE(" R = ",FIXED(R4)," cm"),"") -> 
B31: =CB4 -> x1 = (xB)+(xA)/2 = [(5.00)+(-2.00)]/2 = 3.00 cm | P31: =IF(P4="arco circ.",CONCATENATE(" ω = ", FIXED(T4,4)," rad = ",FIXED(DEGREES(T4),4),"° deg"),"") -> 
B32: =CC4 -> y1 = (yB+yA)/2 = [(6.00)+(5.00)]/2 = 5.50 cm | P32: =CD4 -> 
P33: =CE4 -> 
B34: =CF4 -> S1x = m1∙y1 = 10.05x(5.50) = 30.15 cm² | P34: =IF(P4="arco circ.",CONCATENATE("Xo",O4," = ",FIXED(AS4)," cm"),"") -> 
B35: =CG4 -> S1y = m1∙x1 = 10.05x(3.00) = 30.15 cm² | P35: =IF(P4="arco circ.",CONCATENATE("Xo",O4," = ",FIXED(AT4)," cm"),"") -> 
B36: =IF(P6="","",CONCATENATE("Fig.",O6," - ",P6)) -> Fig.2 - arco circ.
B37: =CA6 -> m2 = R∙2ω = 5.00x2x1.5708 = 15.71 cm | P37: =IF(P6="arco circ.",CONCATENATE(" R = ",FIXED(R6)," cm"),"") -> R = 5.00 cm
B38: =CB6 -> x2 = XO + OG∙cos[θ(OG)] = 8.00+3.18xcos(180.0000°) = 11.18 cm | P38: =IF(P6="arco circ.",CONCATENATE(" ω = ", FIXED(T6,4)," rad = ",FIXED(DEGREES(T6),4),"° deg"),"") -> ω = 1.5708 rad = 90.0000° deg
B39: =CC6 -> y2 = yO + OG∙sen[θ(OG)] = 1.00+3.18xsen(180.0000°) = 1.00 cm | P39: =CD6 -> OG2 = R∙sen(α)/α(rad) = 5.00xsen(1.5708/1.5708 = 3.18 cm
P40: =CE6 -> θ(OG) = 3.1416 rad = 180.00° deg
B41: =CF6 -> S2x = m2∙y2 = 15.71x(1.00) = 175.66 cm² | P41: =IF(P6="arco circ.",CONCATENATE("Xo",O6," = ",FIXED(AS6)," cm"),"") -> Xo2 = 8.00 cm
B42: =CG6 -> S2y = m2∙x2 = 15.71x(11.18) = 175.66 cm² | P42: =IF(P6="arco circ.",CONCATENATE("Xo",O6," = ",FIXED(AT6)," cm"),"") -> Xo2 = 1.00 cm
B43: =IF(P8="","",CONCATENATE("Fig.",O8," - ",P8)) -> Fig.3 - segmento
B44: =CA8 -> m3 = √[(xD-xC)²+(yD-yC)²] = √{[(1.00)-(8.00)]²+[(-4.00)-(-4.00)]²} = 7.00 cm | P44: =IF(P8="arco circ.",CONCATENATE(" R = ",FIXED(R8)," cm"),"") -> 
B45: =CB8 -> x3 = (xD)+(xC)/2 = [(-4.00)+(8.00)]/2 = 4.50 cm | P45: =IF(P8="arco circ.",CONCATENATE(" ω = ", FIXED(T8,4)," rad = ",FIXED(DEGREES(T8),4),"° deg"),"") -> 
B46: =CC8 -> y3 = (yD+yC)/2 = [(-4.00)+(-4.00)]/2 = -4.00 cm | P46: =CD8 -> 
P47: =CE8 -> 
B48: =CF8 -> S3x = m3∙y3 = 7.00x(-4.00) = 31.50 cm² | P48: =IF(P8="arco circ.",CONCATENATE("Xo",O8," = ",FIXED(AS8)," cm"),"") -> 
B49: =CG8 -> S3y = m3∙x3 = 7.00x(4.50) = 31.50 cm² | P49: =IF(P8="arco circ.",CONCATENATE("Xo",O8," = ",FIXED(AT8)," cm"),"") -> 
B50: =IF(P10="","",CONCATENATE("Fig.",O10," - ",P10)) -> Fig.4 - segmento
B51: =CA10 -> m4 = √[(xE-xD)²+(yE-yD)²] = √{[(-7.00)-(1.00)]²+[(-6.00)-(-4.00)]²} = 8.25 cm | P51: =IF(P10="arco circ.",CONCATENATE(" R = ",FIXED(R10)," cm"),"") -> 
B52: =CB10 -> x4 = (xE)+(xD)/2 = [(-4.00)+(1.00)]/2 = -3.00 cm | P52: =IF(O10="arco circ.",CONCATENATE(" ω = ", FIXED(T10,4)," rad = ",FIXED(DEGREES(T10),4),"° deg"),"") -> 
B53: =CC12 -> y5 = (yF+yE)/2 = [(1.00)+(-6.00)]/2 = -2.50 cm | P53: =CD10 -> 
P54: =CE10 -> 
B55: =CF10 -> S4x = m4∙y4 = 8.25x(-5.00) = -24.74 cm² | P55: =IF(P10="arco circ.",CONCATENATE("Xo",O10," = ",FIXED(AS10)," cm"),"") -> 
B56: =CG10 -> S4y = m4∙x4 = 8.25x(-3.00) = -24.74 cm² | P56: =IF(P10="arco circ.",CONCATENATE("Xo",O10," = ",FIXED(AT10)," cm"),"") -> 
B57: =IF(P12="","",CONCATENATE("Fig.",O12," - ",P12)) -> Fig.5 - segmento
B58: =CA12 -> m5 = √[(xF-xE)²+(yF-yE)²] = √{[(-7.00)-(-7.00)]²+[(1.00)-(-6.00)]²} = 7.00 cm | P58: =IF(P12="arco circ.",CONCATENATE(" R = ",FIXED(R12)," cm"),"") -> 
B59: =CB12 -> x5 = (xF)+(xE)/2 = [(-6.00)+(-7.00)]/2 = -7.00 cm | P59: =IF(P12="arco circ.",CONCATENATE(" ω = ", FIXED(T12,4)," rad = ",FIXED(DEGREES(T12),4),"° deg"),"") -> 
B60: =CC12 -> y5 = (yF+yE)/2 = [(1.00)+(-6.00)]/2 = -2.50 cm | P60: =CD12 -> 
P61: =CE12 -> 
B62: =CF12 -> S5x = m5∙y5 = 7.00x(-2.50) = -49.00 cm² | P62: =IF(P12="arco circ.",CONCATENATE("Xo",O12," = ",FIXED(AS12)," cm"),"") -> 
B63: =CG12 -> S5y = m5∙x5 = 7.00x(-7.00) = -49.00 cm² | P63: =IF(P12="arco circ.",CONCATENATE("Xo",O12," = ",FIXED(AT12)," cm"),"") -> 
B64: =IF(P15="","",IF(P15="segmento",#REF!,#REF!)) -> 
B65: =IF(P15="","",IF(P15="segmento",#REF!,BE15)) -> 
B66: =IF(P15="","",IF(P15="segmento",#REF!,BF15)) -> 
B68: =IF(P15="","",IF(P15="segmento",#REF!,BG15)) -> 
B69: =IF(P15="","",IF(P15="segmento",#REF!,BH15)) -> 
B70: =IF(P17="","",CONCATENATE("Fig. ",O17," - ",P17)) -> 
B71: =IF(P17="","",IF(P17="segmento",#REF!,#REF!)) -> 
B72: =IF(P17="","",IF(P17="segmento",#REF!,BE17)) -> 
B73: =IF(P17="","",IF(P17="segmento",#REF!,BE17)) -> 
B75: =IF(P17="","",IF(P17="segmento",#REF!,BG17)) -> 
B76: =IF(P17="","",IF(P17="segmento",#REF!,BH17)) -> 
B77: =IF(P19="","",CONCATENATE("Fig. ",O19," - ",P19)) -> 
B78: =IF(P19="","",IF(P19="segmento",#REF!,#REF!)) -> 
B79: =IF(P19="","",IF(P19="segmento",#REF!,BE19)) -> 
B80: =IF(P19="","",IF(P39="segmento",#REF!,BF19)) -> 
B82: =IF(P19="","",IF(P19="segmento",#REF!,BG19)) -> 
B83: =IF(P19="","",IF(P19="segmento",#REF!,BH19)) -> 
B84: =IF(P21="","",CONCATENATE("Fig. ",O21," - ",P21)) -> 
B85: =IF(P21="","",IF(P21="segmento",#REF!,#REF!)) -> 
B86: =IF(P21="","",IF(P21="segmento",#REF!,BE21)) -> 
B87: =IF(P21="","",IF(P46="segmento",#REF!,BF21)) -> 
B89: =IF(P21="","",IF(P21="segmento",#REF!,BG21)) -> 
B90: =IF(P21="","",IF(P21="segmento",#REF!,BH21)) -> 
B91: =IF(P23="","",CONCATENATE("Fig. ",O23," - ",P23)) -> 
B92: =IF(P23="","",IF(P23="segmento",#REF!,#REF!)) -> 
B93: =IF(P23="","",IF(P23="segmento",#REF!,BE23)) -> 
B94: =IF(P23="","",IF(P53="segmento",#REF!,BF23)) -> 
B96: =IF(P23="","",IF(P23="segmento",#REF!,BG23)) -> 
B97: =IF(P23="","",IF(P23="segmento",#REF!,BH23)) -> 

Sheet Foglio6 (hidden)
C1: ='02'!BB2 -> curva | L1: ='02'!BK2 -> segmento
C2: ='02'!BB3 -> θ(OI) | D2: ='02'!BC3 -> P1 | E2: ='02'!BD3 -> P2 | F2: ='02'!BE3 -> P3 | G2: ='02'!BF3 -> P4 | H2: ='02'!BG3 -> P5 | I2: ='02'!BH3 -> P6 | J2: ='02'!BI3 -> P7 | L2: ='02'!BK3 -> P1 | M2: ='02'!BL3 -> P2 | N2: ='02'!BM3 -> P3 | O2: ='02'!BN3 -> P4 | P2: ='02'!BO3 -> P5 | Q2: ='02'!BP3 -> P6 | R2: ='02'!BQ3 -> P7 | T2: P1 | U2: P2 | V2: P3 | W2: P4 | X2: P5 | Y2: P6 | Z2: P7
A3: =IF('02'!P4="","",('02'!P4)) -> segmento | B3: ='02'!BA4 -> x | C3: ='02'!BB4 ->  | D3: ='02'!BC4 ->  | E3: ='02'!BD4 ->  | F3: ='02'!BE4 ->  | G3: ='02'!BF4 ->  | H3: ='02'!BG4 ->  | I3: ='02'!BH4 ->  | J3: ='02'!BI4 ->  | L3: ='02'!BK4 -> -2 | M3: ='02'!BL4 -> -0.3333333333 | N3: ='02'!BM4 -> 1.333333333 | O3: ='02'!BN4 -> 3 | P3: ='02'!BO4 -> 4.666666667 | Q3: ='02'!BP4 -> 6.333333333 | R3: ='02'!BQ4 -> 8 | T3: =IF(A3="","",IF(A3="segmento",L3,D3)) -> -2 | U3: =IF(A3="","",IF(A3="segmento",M3,E3)) -> -0.3333333333 | V3: =IF(A3="","",IF(A3="segmento",N3,F3)) -> 1.333333333 | W3: =IF(A3="","",IF(A3="segmento",O3,G3)) -> 3 | X3: =IF(A3="","",IF(A3="segmento",P3,H3)) -> 4.666666667 | Y3: =IF(A3="","",IF(A3="segmento",Q3,I3)) -> 6.333333333 | Z3: =IF(A3="","",IF(A3="segmento",R3,J3)) -> 8 | AA3: ab
B4: ='02'!BA5 -> y | C4: ='02'!BB5 -> 0 | D4: ='02'!BC5 ->  | E4: ='02'!BD5 ->  | F4: ='02'!BE5 ->  | G4: ='02'!BF5 ->  | H4: ='02'!BG5 ->  | I4: ='02'!BH5 ->  | J4: ='02'!BI5 ->  | L4: ='02'!BK5 -> 5 | M4: ='02'!BL5 -> 5.166666667 | N4: ='02'!BM5 -> 5.333333333 | O4: ='02'!BN5 -> 5.5 | P4: ='02'!BO5 -> 5.666666667 | Q4: ='02'!BP5 -> 5.833333333 | R4: ='02'!BQ5 -> 6 | T4: =IF(A3="","",IF(A3="segmento",L4,D4)) -> 5 | U4: =IF(A3="","",IF(A3="segmento",M4,E4)) -> 5.166666667 | V4: =IF(A3="","",IF(A3="segmento",N4,F4)) -> 5.333333333 | W4: =IF(A3="","",IF(A3="segmento",O4,G4)) -> 5.5 | X4: =IF(A3="","",IF(A3="segmento",P4,H4)) -> 5.666666667 | Y4: =IF(A3="","",IF(A3="segmento",Q4,I4)) -> 5.833333333 | Z4: =IF(A3="","",IF(A3="segmento",R4,J4)) -> 6
A5: =IF('02'!P6="","",('02'!P6)) -> arco circ. | B5: ='02'!BA6 -> x | C5: ='02'!BB6 -> 1.570796327 | D5: ='02'!BC6 -> 8 | E5: ='02'!BD6 -> 10.5 | F5: ='02'!BE6 -> 12.33012702 | G5: ='02'!BF6 -> 13 | H5: ='02'!BG6 -> 12.33012702 | I5: ='02'!BH6 -> 10.5 | J5: ='02'!BI6 -> 8 | L5: ='02'!BK6 -> 8 | M5: ='02'!BL6 -> 8 | N5: ='02'!BM6 -> 8 | O5: ='02'!BN6 -> 8 | P5: ='02'!BO6 -> 8 | Q5: ='02'!BP6 -> 8 | R5: ='02'!BQ6 -> 8 | T5: =IF(A5="","",IF(A5="segmento",L5,D5)) -> 8 | U5: =IF(A5="","",IF(A5="segmento",M5,E5)) -> 10.5 | V5: =IF(A5="","",IF(A5="segmento",N5,F5)) -> 12.33012702 | W5: =IF(A5="","",IF(A5="segmento",O5,G5)) -> 13 | X5: =IF(A5="","",IF(A5="segmento",P5,H5)) -> 12.33012702 | Y5: =IF(A5="","",IF(A5="segmento",Q5,I5)) -> 10.5 | Z5: =IF(A5="","",IF(A5="segmento",R5,J5)) -> 8 | AA5: bc
B6: ='02'!BA7 -> y | C6: ='02'!BB7 -> 0 | D6: ='02'!BC7 -> 6 | E6: ='02'!BD7 -> 5.330127019 | F6: ='02'!BE7 -> 3.5 | G6: ='02'!BF7 -> 1 | H6: ='02'!BG7 -> -1.5 | I6: ='02'!BH7 -> -3.330127019 | J6: ='02'!BI7 -> -4 | L6: ='02'!BK7 -> 6 | M6: ='02'!BL7 -> 4.333333333 | N6: ='02'!BM7 -> 2.666666667 | O6: ='02'!BN7 -> 1 | P6: ='02'!BO7 -> -0.6666666667 | Q6: ='02'!BP7 -> -2.333333333 | R6: ='02'!BQ7 -> -4 | T6: =IF(A5="","",IF(A5="segmento",L6,D6)) -> 6 | U6: =IF(A5="","",IF(A5="segmento",M6,E6)) -> 5.330127019 | V6: =IF(A5="","",IF(A5="segmento",N6,F6)) -> 3.5 | W6: =IF(A5="","",IF(A5="segmento",O6,G6)) -> 1 | X6: =IF(A5="","",IF(A5="segmento",P6,H6)) -> -1.5 | Y6: =IF(A5="","",IF(A5="segmento",Q6,I6)) -> -3.330127019 | Z6: =IF(A5="","",IF(A5="segmento",R6,J6)) -> -4
A7: =IF('02'!P8="","",('02'!P8)) -> segmento | B7: ='02'!BA8 -> x | C7: ='02'!BB8 ->  | D7: ='02'!BC8 ->  | E7: ='02'!BD8 ->  | F7: ='02'!BE8 ->  | G7: ='02'!BF8 ->  | H7: ='02'!BG8 ->  | I7: ='02'!BH8 ->  | J7: ='02'!BI8 ->  | L7: ='02'!BK8 -> 8 | M7: ='02'!BL8 -> 6.833333333 | N7: ='02'!BM8 -> 5.666666667 | O7: ='02'!BN8 -> 4.5 | P7: ='02'!BO8 -> 3.333333333 | Q7: ='02'!BP8 -> 2.166666667 | R7: ='02'!BQ8 -> 1 | T7: =IF(A7="","",IF(A7="segmento",L7,D7)) -> 8 | U7: =IF(A7="","",IF(A7="segmento",M7,E7)) -> 6.833333333 | V7: =IF(A7="","",IF(A7="segmento",N7,F7)) -> 5.666666667 | W7: =IF(A7="","",IF(A7="segmento",O7,G7)) -> 4.5 | X7: =IF(A7="","",IF(A7="segmento",P7,H7)) -> 3.333333333 | Y7: =IF(A7="","",IF(A7="segmento",Q7,I7)) -> 2.166666667 | Z7: =IF(A7="","",IF(A7="segmento",R7,J7)) -> 1 | AA7: cd
B8: ='02'!BA9 -> y | C8: ='02'!BB9 -> 0 | D8: ='02'!BC9 ->  | E8: ='02'!BD9 ->  | F8: ='02'!BE9 ->  | G8: ='02'!BF9 ->  | H8: ='02'!BG9 ->  | I8: ='02'!BH9 ->  | J8: ='02'!BI9 ->  | L8: ='02'!BK9 -> -4 | M8: ='02'!BL9 -> -4 | N8: ='02'!BM9 -> -4 | O8: ='02'!BN9 -> -4 | P8: ='02'!BO9 -> -4 | Q8: ='02'!BP9 -> -4 | R8: ='02'!BQ9 -> -4 | T8: =IF(A7="","",IF(A7="segmento",L8,D8)) -> -4 | U8: =IF(A7="","",IF(A7="segmento",M8,E8)) -> -4 | V8: =IF(A7="","",IF(A7="segmento",N8,F8)) -> -4 | W8: =IF(A7="","",IF(A7="segmento",O8,G8)) -> -4 | X8: =IF(A7="","",IF(A7="segmento",P8,H8)) -> -4 | Y8: =IF(A7="","",IF(A7="segmento",Q8,I8)) -> -4 | Z8: =IF(A7="","",IF(A7="segmento",R8,J8)) -> -4
A9: =IF('02'!P10="","",('02'!P10)) -> segmento | B9: ='02'!BA10 -> x | C9: ='02'!BB10 ->  | D9: ='02'!BC10 ->  | E9: ='02'!BD10 ->  | F9: ='02'!BE10 ->  | G9: ='02'!BF10 ->  | H9: ='02'!BG10 ->  | I9: ='02'!BH10 ->  | J9: ='02'!BI10 ->  | L9: ='02'!BK10 -> 1 | M9: ='02'!BL10 -> -0.3333333333 | N9: ='02'!BM10 -> -1.666666667 | O9: ='02'!BN10 -> -3 | P9: ='02'!BO10 -> -4.333333333 | Q9: ='02'!BP10 -> -5.666666667 | R9: ='02'!BQ10 -> -7 | T9: =IF(A9="","",IF(A9="segmento",L9,D9)) -> 1 | U9: =IF(A9="","",IF(A9="segmento",M9,E9)) -> -0.3333333333 | V9: =IF(A9="","",IF(A9="segmento",N9,F9)) -> -1.666666667 | W9: =IF(A9="","",IF(A9="segmento",O9,G9)) -> -3 | X9: =IF(A9="","",IF(A9="segmento",P9,H9)) -> -4.333333333 | Y9: =IF(A9="","",IF(A9="segmento",Q9,I9)) -> -5.666666667 | Z9: =IF(A9="","",IF(A9="segmento",R9,J9)) -> -7 | AA9: de
B10: ='02'!BA11 -> y | C10: ='02'!BB11 -> 0 | D10: ='02'!BC11 ->  | E10: ='02'!BD11 ->  | F10: ='02'!BE11 ->  | G10: ='02'!BF11 ->  | H10: ='02'!BG11 ->  | I10: ='02'!BH11 ->  | J10: ='02'!BI11 ->  | L10: ='02'!BK11 -> -4 | M10: ='02'!BL11 -> -4.333333333 | N10: ='02'!BM11 -> -4.666666667 | O10: ='02'!BN11 -> -5 | P10: ='02'!BO11 -> -5.333333333 | Q10: ='02'!BP11 -> -5.666666667 | R10: ='02'!BQ11 -> -6 | T10: =IF(A9="","",IF(A9="segmento",L10,D10)) -> -4 | U10: =IF(A9="","",IF(A9="segmento",M10,E10)) -> -4.333333333 | V10: =IF(A9="","",IF(A9="segmento",N10,F10)) -> -4.666666667 | W10: =IF(A9="","",IF(A9="segmento",O10,G10)) -> -5 | X10: =IF(A9="","",IF(A9="segmento",P10,H10)) -> -5.333333333 | Y10: =IF(A9="","",IF(A9="segmento",Q10,I10)) -> -5.666666667 | Z10: =IF(A9="","",IF(A9="segmento",R10,J10)) -> -6
A11: =IF('02'!P12="","",('02'!P12)) -> segmento | B11: ='02'!BA12 -> x | C11: ='02'!BB12 ->  | D11: ='02'!BC12 ->  | E11: ='02'!BD12 ->  | F11: ='02'!BE12 ->  | G11: ='02'!BF12 ->  | H11: ='02'!BG12 ->  | I11: ='02'!BH12 ->  | J11: ='02'!BI12 ->  | L11: ='02'!BK12 -> -7 | M11: ='02'!BL12 -> -7 | N11: ='02'!BM12 -> -7 | O11: ='02'!BN12 -> -7 | P11: ='02'!BO12 -> -7 | Q11: ='02'!BP12 -> -7 | R11: ='02'!BQ12 -> -7 | T11: =IF(A11="","",IF(A11="segmento",L11,D11)) -> -7 | U11: =IF(A11="","",IF(A11="segmento",M11,E11)) -> -7 | V11: =IF(A11="","",IF(A11="segmento",N11,F11)) -> -7 | W11: =IF(A11="","",IF(A11="segmento",O11,G11)) -> -7 | X11: =IF(A11="","",IF(A11="segmento",P11,H11)) -> -7 | Y11: =IF(A11="","",IF(A11="segmento",Q11,I11)) -> -7 | Z11: =IF(A11="","",IF(A11="segmento",R11,J11)) -> -7 | AA11: ef
B12: ='02'!BA13 -> y | C12: ='02'!BB13 -> 0 | D12: ='02'!BC13 ->  | E12: ='02'!BD13 ->  | F12: ='02'!BE13 ->  | G12: ='02'!BF13 ->  | H12: ='02'!BG13 ->  | I12: ='02'!BH13 ->  | J12: ='02'!BI13 ->  | L12: ='02'!BK13 -> -6 | M12: ='02'!BL13 -> -4.833333333 | N12: ='02'!BM13 -> -3.666666667 | O12: ='02'!BN13 -> -2.5 | P12: ='02'!BO13 -> -1.333333333 | Q12: ='02'!BP13 -> -0.1666666667 | R12: ='02'!BQ13 -> 1 | T12: =IF(A11="","",IF(A11="segmento",L12,D12)) -> -6 | U12: =IF(A11="","",IF(A11="segmento",M12,E12)) -> -4.833333333 | V12: =IF(A11="","",IF(A11="segmento",N12,F12)) -> -3.666666667 | W12: =IF(A11="","",IF(A11="segmento",O12,G12)) -> -2.5 | X12: =IF(A11="","",IF(A11="segmento",P12,H12)) -> -1.333333333 | Y12: =IF(A11="","",IF(A11="segmento",Q12,I12)) -> -0.1666666667 | Z12: =IF(A11="","",IF(A11="segmento",R12,J12)) -> 1
A13: =IF('02'!P14="","",('02'!P14)) ->  | B13: ='02'!BA14 -> x | C13: ='02'!BB14 ->  | D13: ='02'!BC14 ->  | E13: ='02'!BD14 ->  | F13: ='02'!BE14 ->  | G13: ='02'!BF14 ->  | H13: ='02'!BG14 ->  | I13: ='02'!BH14 ->  | J13: ='02'!BI14 ->  | L13: ='02'!BK14 ->  | M13: ='02'!BL14 ->  | N13: ='02'!BM14 ->  | O13: ='02'!BN14 ->  | P13: ='02'!BO14 ->  | Q13: ='02'!BP14 ->  | R13: ='02'!BQ14 ->  | T13: =IF(A13="","",IF(A13="segmento",L13,D13)) ->  | U13: =IF(A13="","",IF(A13="segmento",M13,E13)) ->  | V13: =IF(A13="","",IF(A13="segmento",N13,F13)) ->  | W13: =IF(A13="","",IF(A13="segmento",O13,G13)) ->  | X13: =IF(A13="","",IF(A13="segmento",P13,H13)) ->  | Y13: =IF(A13="","",IF(A13="segmento",Q13,I13)) ->  | Z13: =IF(A13="","",IF(A13="segmento",R13,J13)) ->  | AA13: fg
B14: ='02'!BA15 -> y | C14: ='02'!BB15 -> 0 | D14: ='02'!BC15 ->  | E14: ='02'!BD15 ->  | F14: ='02'!BE15 ->  | G14: ='02'!BF15 ->  | H14: ='02'!BG15 ->  | I14: ='02'!BH15 ->  | J14: ='02'!BI15 ->  | L14: ='02'!BK15 ->  | M14: ='02'!BL15 ->  | N14: ='02'!BM15 ->  | O14: ='02'!BN15 ->  | P14: ='02'!BO15 ->  | Q14: ='02'!BP15 ->  | R14: ='02'!BQ15 ->  | T14: =IF(A13="","",IF(A13="segmento",L14,D14)) ->  | U14: =IF(A13="","",IF(A13="segmento",M14,E14)) ->  | V14: =IF(A13="","",IF(A13="segmento",N14,F14)) ->  | W14: =IF(A13="","",IF(A13="segmento",O14,G14)) ->  | X14: =IF(A13="","",IF(A13="segmento",P14,H14)) ->  | Y14: =IF(A13="","",IF(A13="segmento",Q14,I14)) ->  | Z14: =IF(A13="","",IF(A13="segmento",R14,J14)) -> 
A15: =IF('02'!P16="","",('02'!P16)) ->  | B15: ='02'!BA16 -> x | C15: ='02'!BB16 ->  | D15: ='02'!BC16 ->  | E15: ='02'!BD16 ->  | F15: ='02'!BE16 ->  | G15: ='02'!BF16 ->  | H15: ='02'!BG16 ->  | I15: ='02'!BH16 ->  | J15: ='02'!BI16 ->  | L15: ='02'!BK16 ->  | M15: ='02'!BL16 ->  | N15: ='02'!BM16 ->  | O15: ='02'!BN16 ->  | P15: ='02'!BO16 ->  | Q15: ='02'!BP16 ->  | R15: ='02'!BQ16 ->  | T15: =IF(A15="","",IF(A15="segmento",L15,D15)) ->  | U15: =IF(A15="","",IF(A15="segmento",M15,E15)) ->  | V15: =IF(A15="","",IF(A15="segmento",N15,F15)) ->  | W15: =IF(A15="","",IF(A15="segmento",O15,G15)) ->  | X15: =IF(A15="","",IF(A15="segmento",P15,H15)) ->  | Y15: =IF(A15="","",IF(A15="segmento",Q15,I15)) ->  | Z15: =IF(A15="","",IF(A15="segmento",R15,J15)) ->  | AA15: gh
B16: ='02'!BA17 -> y | C16: ='02'!BB17 -> 0 | D16: ='02'!BC17 ->  | E16: ='02'!BD17 ->  | F16: ='02'!BE17 ->  | G16: ='02'!BF17 ->  | H16: ='02'!BG17 ->  | I16: ='02'!BH17 ->  | J16: ='02'!BI17 ->  | L16: ='02'!BK17 ->  | M16: ='02'!BL17 ->  | N16: ='02'!BM17 ->  | O16: ='02'!BN17 ->  | P16: ='02'!BO17 ->  | Q16: ='02'!BP17 ->  | R16: ='02'!BQ17 ->  | T16: =IF(A15="","",IF(A15="segmento",L16,D16)) ->  | U16: =IF(A15="","",IF(A15="segmento",M16,E16)) ->  | V16: =IF(A15="","",IF(A15="segmento",N16,F16)) ->  | W16: =IF(A15="","",IF(A15="segmento",O16,G16)) ->  | X16: =IF(A15="","",IF(A15="segmento",P16,H16)) ->  | Y16: =IF(A15="","",IF(A15="segmento",Q16,I16)) ->  | Z16: =IF(A15="","",IF(A15="segmento",R16,J16)) -> 
A17: =IF('02'!P18="","",('02'!P18)) ->  | B17: ='02'!BA18 -> x | C17: ='02'!BB18 ->  | D17: ='02'!BC18 ->  | E17: ='02'!BD18 ->  | F17: ='02'!BE18 ->  | G17: ='02'!BF18 ->  | H17: ='02'!BG18 ->  | I17: ='02'!BH18 ->  | J17: ='02'!BI18 ->  | L17: ='02'!BK18 ->  | M17: ='02'!BL18 ->  | N17: ='02'!BM18 ->  | O17: ='02'!BN18 ->  | P17: ='02'!BO18 ->  | Q17: ='02'!BP18 ->  | R17: ='02'!BQ18 ->  | T17: =IF(A17="","",IF(A17="segmento",L17,D17)) ->  | U17: =IF(A17="","",IF(A17="segmento",M17,E17)) ->  | V17: =IF(A17="","",IF(A17="segmento",N17,F17)) ->  | W17: =IF(A17="","",IF(A17="segmento",O17,G17)) ->  | X17: =IF(A17="","",IF(A17="segmento",P17,H17)) ->  | Y17: =IF(A17="","",IF(A17="segmento",Q17,I17)) ->  | Z17: =IF(A17="","",IF(A17="segmento",R17,J17)) ->  | AA17: hi
B18: ='02'!BA19 -> y | C18: ='02'!BB19 -> 0 | D18: ='02'!BC19 ->  | E18: ='02'!BD19 ->  | F18: ='02'!BE19 ->  | G18: ='02'!BF19 ->  | H18: ='02'!BG19 ->  | I18: ='02'!BH19 ->  | J18: ='02'!BI19 ->  | L18: ='02'!BK19 ->  | M18: ='02'!BL19 ->  | N18: ='02'!BM19 ->  | O18: ='02'!BN19 ->  | P18: ='02'!BO19 ->  | Q18: ='02'!BP19 ->  | R18: ='02'!BQ19 ->  | T18: =IF(A17="","",IF(A17="segmento",L18,D18)) ->  | U18: =IF(A17="","",IF(A17="segmento",M18,E18)) ->  | V18: =IF(A17="","",IF(A17="segmento",N18,F18)) ->  | W18: =IF(A17="","",IF(A17="segmento",O18,G18)) ->  | X18: =IF(A17="","",IF(A17="segmento",P18,H18)) ->  | Y18: =IF(A17="","",IF(A17="segmento",Q18,I18)) ->  | Z18: =IF(A17="","",IF(A17="segmento",R18,J18)) -> 
A19: =IF('02'!P20="","",('02'!P20)) ->  | B19: ='02'!BA20 -> x | C19: ='02'!BB20 ->  | D19: ='02'!BC20 ->  | E19: ='02'!BD20 ->  | F19: ='02'!BE20 ->  | G19: ='02'!BF20 ->  | H19: ='02'!BG20 ->  | I19: ='02'!BH20 ->  | J19: ='02'!BI20 ->  | L19: ='02'!BK20 ->  | M19: ='02'!BL20 ->  | N19: ='02'!BM20 ->  | O19: ='02'!BN20 ->  | P19: ='02'!BO20 ->  | Q19: ='02'!BP20 ->  | R19: ='02'!BQ20 ->  | T19: =IF(A19="","",IF(A19="segmento",L19,D19)) ->  | U19: =IF(A19="","",IF(A19="segmento",M19,E19)) ->  | V19: =IF(A19="","",IF(A19="segmento",N19,F19)) ->  | W19: =IF(A19="","",IF(A19="segmento",O19,G19)) ->  | X19: =IF(A19="","",IF(A19="segmento",P19,H19)) ->  | Y19: =IF(A19="","",IF(A19="segmento",Q19,I19)) ->  | Z19: =IF(A19="","",IF(A19="segmento",R19,J19)) ->  | AA19: il
B20: ='02'!BA21 -> y | C20: ='02'!BB21 -> 0 | D20: ='02'!BC21 ->  | E20: ='02'!BD21 ->  | F20: ='02'!BE21 ->  | G20: ='02'!BF21 ->  | H20: ='02'!BG21 ->  | I20: ='02'!BH21 ->  | J20: ='02'!BI21 ->  | L20: ='02'!BK21 ->  | M20: ='02'!BL21 ->  | N20: ='02'!BM21 ->  | O20: ='02'!BN21 ->  | P20: ='02'!BO21 ->  | Q20: ='02'!BP21 ->  | R20: ='02'!BQ21 ->  | T20: =IF(A19="","",IF(A19="segmento",L20,D20)) ->  | U20: =IF(A19="","",IF(A19="segmento",M20,E20)) ->  | V20: =IF(A19="","",IF(A19="segmento",N20,F20)) ->  | W20: =IF(A19="","",IF(A19="segmento",O20,G20)) ->  | X20: =IF(A19="","",IF(A19="segmento",P20,H20)) ->  | Y20: =IF(A19="","",IF(A19="segmento",Q20,I20)) ->  | Z20: =IF(A19="","",IF(A19="segmento",R20,J20)) -> 
A21: =IF('02'!P22="","",('02'!P22)) ->  | B21: ='02'!BA22 -> x | C21: ='02'!BB22 ->  | D21: ='02'!BC22 ->  | E21: ='02'!BD22 ->  | F21: ='02'!BE22 ->  | G21: ='02'!BF22 ->  | H21: ='02'!BG22 ->  | I21: ='02'!BH22 ->  | J21: ='02'!BI22 ->  | L21: ='02'!BK22 ->  | M21: ='02'!BL22 ->  | N21: ='02'!BM22 ->  | O21: ='02'!BN22 ->  | P21: ='02'!BO22 ->  | Q21: ='02'!BP22 ->  | R21: ='02'!BQ22 ->  | T21: =IF(A21="","",IF(A21="segmento",L21,D21)) ->  | U21: =IF(A21="","",IF(A21="segmento",M21,E21)) ->  | V21: =IF(A21="","",IF(A21="segmento",N21,F21)) ->  | W21: =IF(A21="","",IF(A21="segmento",O21,G21)) ->  | X21: =IF(A21="","",IF(A21="segmento",P21,H21)) ->  | Y21: =IF(A21="","",IF(A21="segmento",Q21,I21)) ->  | Z21: =IF(A21="","",IF(A21="segmento",R21,J21)) ->  | AA21: lm
B22: ='02'!BA23 -> y | C22: ='02'!BB23 -> 0 | D22: ='02'!BC23 ->  | E22: ='02'!BD23 ->  | F22: ='02'!BE23 ->  | G22: ='02'!BF23 ->  | H22: ='02'!BG23 ->  | I22: ='02'!BH23 ->  | J22: ='02'!BI23 ->  | L22: ='02'!BK23 ->  | M22: ='02'!BL23 ->  | N22: ='02'!BM23 ->  | O22: ='02'!BN23 ->  | P22: ='02'!BO23 ->  | Q22: ='02'!BP23 ->  | R22: ='02'!BQ23 ->  | T22: =IF(A21="","",IF(A21="segmento",L22,D22)) ->  | U22: =IF(A21="","",IF(A21="segmento",M22,E22)) ->  | V22: =IF(A21="","",IF(A21="segmento",N22,F22)) ->  | W22: =IF(A21="","",IF(A21="segmento",O22,G22)) ->  | X22: =IF(A21="","",IF(A21="segmento",P22,H22)) ->  | Y22: =IF(A21="","",IF(A21="segmento",Q22,I22)) ->  | Z22: =IF(A21="","",IF(A21="segmento",R22,J22)) -> 
